Workbook

Sheet Лист1
M1: пример
B2: первая цена | C2: вторая | D2: третья | F2: среднее значение | G2: Ваша одна формула | H2: Новая формула | I2: Самая новая | M2: первая цена | N2: вторая | O2: третья | P2: сред значение
B3: 82 | C3: 83 | D3: 84 | M3: 82 | N3: 83 | O3: 84
B4: 1 | C4: 1 | D4: 1 | E4: истина1 | F4: =(B3*B4+C3*C4+D3*D4)/(B4+C4+D4) -> 83 | G4: =IF(SIGN(B4)=SIGN(D4),($B$3*B4+$C$3*C4+$D$3*D4)/(B4+C4+D4),IF(SIGN(B4)=SIGN(C4),($B$3*B4+$C$3*C4)/(B4+C4),$B$3)) -> 83 | H4: =IF(AND(SUM(B4:D4)=0,D4<>0),"вне рынка",IF(OR(ABS(SIGN(B4)+SIGN(C4)+SIGN(D4))>1,SIGN(B4)=SIGN(D4)),($B$3*B4+$C$3*C4+$D$3*D4)/(B4+C4+D4),IF(ABS(D4)>ABS(B4+C4),$D$3,IF(SIGN(B4)=SIGN(C4),($B$3*B4+$C$3*C4)/(B4+C4),$B$3)))) -> 83 | I4: =IF(AND(SUM(B4:D4)=0,D4<>0),"вне рынка",IF(ABS(SIGN(B4)+SIGN(C4)+SIGN(D4))=3,($B$3*B4+$C$3*C4+$D$3*D4)/(B4+C4+D4),IF(SIGN(B4)=SIGN(D4),($B$3*(B4+C4)+$D$3*D4)/(B4+C4+D4),IF(ABS(D4)>ABS(B4+C4),$D$3,IF(SIGN(B4)=SIGN(C4),($B$3*B4+$C$3*C4)/(B4+C4),$B$3))))) -> 83 | L4: =SUM(SIGN(B4:D4)) -> 3
B5: 1 | C5: 1 | D5: 0 | E5: истина2 | F5: =(B3*B5+C3*C5+D3*D5)/(B5+C5+D5) -> 82.5 | G5: =IF(SIGN(B5)=SIGN(D5),($B$3*B5+$C$3*C5+$D$3*D5)/(B5+C5+D5),IF(SIGN(B5)=SIGN(C5),($B$3*B5+$C$3*C5)/(B5+C5),$B$3)) -> 82.5 | H5: =IF(AND(SUM(B5:D5)=0,D5<>0),"вне рынка",IF(OR(ABS(SIGN(B5)+SIGN(C5)+SIGN(D5))>1,SIGN(B5)=SIGN(D5)),($B$3*B5+$C$3*C5+$D$3*D5)/(B5+C5+D5),IF(ABS(D5)>ABS(B5+C5),$D$3,IF(SIGN(B5)=SIGN(C5),($B$3*B5+$C$3*C5)/(B5+C5),$B$3)))) -> 82.5 | I5: =IF(AND(SUM(B5:D5)=0,D5<>0),"вне рынка",IF(ABS(SIGN(B5)+SIGN(C5)+SIGN(D5))=3,($B$3*B5+$C$3*C5+$D$3*D5)/(B5+C5+D5),IF(SIGN(B5)=SIGN(D5),($B$3*(B5+C5)+$D$3*D5)/(B5+C5+D5),IF(ABS(D5)>ABS(B5+C5),$D$3,IF(SIGN(B5)=SIGN(C5),($B$3*B5+$C$3*C5)/(B5+C5),$B$3))))) -> 82.5
B6: -1 | C6: -1 | D6: -1 | E6: истина1 | F6: =(B3*B6+C3*C6+D3*D6)/(B6+C6+D6) -> 83 | G6: 83 | H6: 83 | I6: 83
B7: -1 | C7: -1 | D7: 0 | E7: истина2 | F7: =(B3*B7+C3*C7+D3*D7)/(B7+C7+D7) -> 82.5 | G7: 82.5 | H7: 82.5 | I7: 82.5
B8: -1 | C8: -1 | D8: 2 | E8: истина2 | F8: =(B3*B8+C3*C8+D3*D8*0)/(B8+C8+D8*0) -> 82.5 | G8: 82.5 | H8: вне рынка | I8: вне рынка | L8: вот тут возможно покупок больше(то есть больше суммы отрицательных чисел, но может и меньше), то есть будет еще одна истина, равная D3, то есть если D12>суммы -1*(B12+C12)=D3, в противном случае, равно G12 (столбик С только учавствует в сравнении больше или меньше к новой истине).И третья истина,новая,равная нулю(ее можно просто назвать не ноль,а ВНЕ РЫНКА-просто термином),когда количество в сумме равно нулю.пример: -1,-1,2, в сумме равно нулю. | M8: -1 | N8: -1 | O8: 5 | P8: =D3 -> 84
B9: -3 | C9: 1 | D9: 3 | E9: лож1 | F9: =B3 -> 82 | G9: 82 | H9: 84 | I9: 84 | L9: вот тут возможно покупок больше(то есть больше отрицательного числа, но может и меньше), то есть будет еще одна истина, равная D3, то есть если D13>-1*B13=D3, в противном случае, равно G13 (столбик С только учавствует в сравнении больше или меньше к новой истине)И третья истина,новая,равная нулю(ее можно просто назвать не ноль,а ВНЕ РЫНКА-просто термином),когда количество в сумме равно нулю.пример: -5,3,2, в сумме равно нулю. | M9: -2 | N9: 1 | O9: 3 | P9: =D3 -> 84
B10: -2 | C10: 1 | D10: -2 | E10: истина1 | F10: =(B3*B10+C3*C10+D3*D10)/(B10+C10+D10) -> 83 | G10: 83 | H10: 83 | I10: 83.33333333
B11: 2 | C11: 1 | D11: -4 | E11: истина2 | F11: =(B3*B11+C3*C11+D3*D11*0)/(B11+C11+D11*0) -> 82.33333333 | G11: 82.33333333 | H11: 84 | I11: 84 | L11: вот тут возможно продаж больше(то есть больше суммы полож чисел, но может и меньше), то есть будет еще одна истина, равная D3, то есть если D15*-1>суммы (B15+C15)=D3, в противном случае, равно G15 (столбик С только учавствует в сравнении больше или меньше к новой истине)И третья истина,новая,равная нулю(ее можно просто назвать не ноль,а ВНЕ РЫНКА-просто термином),когда количество в сумме равно нулю.пример: 1,1,-2, в сумме равно нулю. | M11: 1 | N11: 1 | O11: -4 | P11: =D3 -> 84
B12: 3 | C12: -1 | D12: -2 | E12: лож1 | F12: =B3 -> 82 | G12: 82 | H12: вне рынка | I12: вне рынка | L12: вот тут возможно продаж больше(то есть больше суммы 1-1 чисел, но может и меньше), то есть будет еще одна истина, равная D3, то есть если D16*-1>суммы (B16+C16)=D3, в противном случае, равно G16 (столбик С только учавствует в сравнении больше или меньше к новой истине)И третья истина,новая,равная нулю(ее можно просто назвать не ноль,а ВНЕ РЫНКА-просто термином),когда количество в сумме равно нулю.пример: 2,-1,-1, в сумме равно нулю. | M12: 2 | N12: -1 | O12: -4 | P12: =D3 -> 84
B13: 3 | C13: -1 | D13: 4 | E13: истина1 | F13: =(B3*B13+C3*C13+D3*D13)/(B13+C13+D13) -> 83.16666667 | G13: 83.16666667 | H13: 83.16666667 | I13: 83.33333333
B14: -2 | C14: 1 | D14: 0 | E14: лож1 | F14: =B3 -> 82 | G14: 82 | H14: 82 | I14: 82
B15: 2 | C15: -1 | D15: 0 | E15: лож1 | F15: =B3 -> 82 | G15: 82 | H15: 82 | I15: 82
B22: первая цена | C22: вторая | D22: третья | E22: четвертая | G22: среднее значение | H22: моя формула для данной ячейки
B23: 82 | C23: 83 | D23: 84 | E23: 85 | H23: Новая формула | I23: Группа (доп. столбец) | J23: Самая новая | L23: Условие первой и второй покупки может иметь только одно направление. То есть: если к примеру -1 1, то -1 будет всегда больше чем 1, то есть -3 2 или -2 1. И наоброт, если условие 1 -1 то,1 будет доминировать, пример 3 -2 или 2 -1.это правило для всех вариантов ниже, а вот третья и четвертая покупка имеет право менять направление или суммой давать ноль. | M23: маленький коммент | N23: Одинаковые формулы
L24: новое нахождение средней,теперь 100% верное.(где то может и совпадать с предыд формулой)
B25: 1 | C25: 1 | D25: 1 | E25: 1 | H25: =(B23*B25+C23*C25+D23*D25+E23*E25)/(B25+C25+D25+E25) -> 83.5 | I25: =IF(ОДИНАКЗНАК(B25:E25),1,IF(ОДИНАКЗНАК(C25:E25),2,IF(AND(ОДИНАКЗНАК(B25:C25),ОДИНАКЗНАК(D25:E25)),3,IF(ОДИНАКЗНАК(B25:D25),4,IF(AND(NOT(ОДИНАКЗНАК(B25:C25)),NOT(ОДИНАКЗНАК(C25:D25))),5,IF(AND(NOT(ОДИНАКЗНАК(B25:C25)),ОДИНАКЗНАК(C25:D25)),6,7)))))) -> 1 | J25: =IF(SUM(B25:E25)=0,"вне рынка",IF(SUM(B25:D25)=0,$E$23,CHOOSE(I25,СРВЗВЕШ($B$23:$E$23,B25:E25),IF(ABS(B25)>ABS(SUM(C25:E25)),$B$23,IF(ABS(B25)<ABS(SUM(C25:D25)),($D$23*SUM(B25:D25)+$E$23*E25)/SUM(B25:E25),$E$23)),IF(ABS(SUM(B25:C25))>ABS(SUM(D25:E25)),СРВЗВЕШ($B$23:$C$23,B25:C25),IF(D25=0,$E$23,IF(OR(SUM(B25:D25)>0,ABS(SUM(B25:C25))<ABS(SUM(D25:E25))),($D$23*SUM(B25:D25)+$E$23*E25)/SUM(B25:E25)))),IF(ABS(SUM(B25:D25))>ABS(E25),СРВЗВЕШ($B$23:$D$23,B25:D25),$E$23),IF(ABS(SUM(B25:D25))>ABS(E25),($B$23*SUM(B25:C25)+$D$23*D25)/SUM(B25:D25),$E$23),IF(ABS(B25)>ABS(SUM(C25:D25)),($B$23*SUM(B25:D25)+$E$23*E25)/SUM(B25:E25),$D$23),IF(ABS(B25)>ABS(SUM(C25:D25)),($B$23*B25+$C$23*C25+$E$23*E25)/SUM(B25,C25,E25),$D$23)))) -> 83.5 | K25: =IF(ISTEXT(J25),H25=J25,ROUND(H25,2)=ROUND(J25,2)) -> TRUE | L25: =(B23*B25+C23*C25+D23*D25+E23*E25)/(B25+C25+D25+E25) -> 83.5 | N25: твоя формула
B26: 1 | C26: 1 | D26: 1 | E26: 0 | H26: =(B23*B26+C23*C26+D23*D26+E23*E26)/(B26+C26+D26+E26) -> 83 | I26: 1 | J26: =IF(SUM(B26:E26)=0,"вне рынка",IF(SUM(B26:D26)=0,$E$23,CHOOSE(I26,СРВЗВЕШ($B$23:$E$23,B26:E26),IF(ABS(B26)>ABS(SUM(C26:E26)),$B$23,IF(ABS(B26)<ABS(SUM(C26:D26)),($D$23*SUM(B26:D26)+$E$23*E26)/SUM(B26:E26),$E$23)),IF(ABS(SUM(B26:C26))>ABS(SUM(D26:E26)),СРВЗВЕШ($B$23:$C$23,B26:C26),IF(D26=0,$E$23,IF(OR(SUM(B26:D26)>0,ABS(SUM(B26:C26))<ABS(SUM(D26:E26))),($D$23*SUM(B26:D26)+$E$23*E26)/SUM(B26:E26)))),IF(ABS(SUM(B26:D26))>ABS(E26),СРВЗВЕШ($B$23:$D$23,B26:D26),$E$23),IF(ABS(SUM(B26:D26))>ABS(E26),($B$23*SUM(B26:C26)+$D$23*D26)/SUM(B26:D26),$E$23),IF(ABS(B26)>ABS(SUM(C26:D26)),($B$23*SUM(B26:D26)+$E$23*E26)/SUM(B26:E26),$D$23),IF(ABS(B26)>ABS(SUM(C26:D26)),($B$23*B26+$C$23*C26+$E$23*E26)/SUM(B26,C26,E26),$D$23)))) -> 83 | K26: =IF(ISTEXT(J26),H26=J26,ROUND(H26,2)=ROUND(J26,2)) -> TRUE | L26: =(B23*B26+C23*C26+D23*D26+E23*E26)/(B26+C26+D26+E26) -> 83 | N26: твоя формула
B27: 1 | C27: 1 | D27: 0 | E27: 0 | H27: =(B23*B27+C23*C27+D23*D27+E23*E27)/(B27+C27+D27+E27) -> 82.5 | I27: 1 | J27: =IF(SUM(B27:E27)=0,"вне рынка",IF(SUM(B27:D27)=0,$E$23,CHOOSE(I27,СРВЗВЕШ($B$23:$E$23,B27:E27),IF(ABS(B27)>ABS(SUM(C27:E27)),$B$23,IF(ABS(B27)<ABS(SUM(C27:D27)),($D$23*SUM(B27:D27)+$E$23*E27)/SUM(B27:E27),$E$23)),IF(ABS(SUM(B27:C27))>ABS(SUM(D27:E27)),СРВЗВЕШ($B$23:$C$23,B27:C27),IF(D27=0,$E$23,IF(OR(SUM(B27:D27)>0,ABS(SUM(B27:C27))<ABS(SUM(D27:E27))),($D$23*SUM(B27:D27)+$E$23*E27)/SUM(B27:E27)))),IF(ABS(SUM(B27:D27))>ABS(E27),СРВЗВЕШ($B$23:$D$23,B27:D27),$E$23),IF(ABS(SUM(B27:D27))>ABS(E27),($B$23*SUM(B27:C27)+$D$23*D27)/SUM(B27:D27),$E$23),IF(ABS(B27)>ABS(SUM(C27:D27)),($B$23*SUM(B27:D27)+$E$23*E27)/SUM(B27:E27),$D$23),IF(ABS(B27)>ABS(SUM(C27:D27)),($B$23*B27+$C$23*C27+$E$23*E27)/SUM(B27,C27,E27),$D$23)))) -> 82.5 | K27: TRUE | L27: =(B23*B27+C23*C27+D23*D27+E23*E27)/(B27+C27+D27+E27) -> 82.5 | N27: твоя формула
B28: 1 | C28: 1 | D28: 0 | E28: 1 | H28: =(B23*B28+C23*C28+D23*D28+E23*E28)/(B28+C28+D28+E28) -> 83.33333333 | I28: 1 | J28: =IF(SUM(B28:E28)=0,"вне рынка",IF(SUM(B28:D28)=0,$E$23,CHOOSE(I28,СРВЗВЕШ($B$23:$E$23,B28:E28),IF(ABS(B28)>ABS(SUM(C28:E28)),$B$23,IF(ABS(B28)<ABS(SUM(C28:D28)),($D$23*SUM(B28:D28)+$E$23*E28)/SUM(B28:E28),$E$23)),IF(ABS(SUM(B28:C28))>ABS(SUM(D28:E28)),СРВЗВЕШ($B$23:$C$23,B28:C28),IF(D28=0,$E$23,IF(OR(SUM(B28:D28)>0,ABS(SUM(B28:C28))<ABS(SUM(D28:E28))),($D$23*SUM(B28:D28)+$E$23*E28)/SUM(B28:E28)))),IF(ABS(SUM(B28:D28))>ABS(E28),СРВЗВЕШ($B$23:$D$23,B28:D28),$E$23),IF(ABS(SUM(B28:D28))>ABS(E28),($B$23*SUM(B28:C28)+$D$23*D28)/SUM(B28:D28),$E$23),IF(ABS(B28)>ABS(SUM(C28:D28)),($B$23*SUM(B28:D28)+$E$23*E28)/SUM(B28:E28),$D$23),IF(ABS(B28)>ABS(SUM(C28:D28)),($B$23*B28+$C$23*C28+$E$23*E28)/SUM(B28,C28,E28),$D$23)))) -> 83.33333588 | K28: TRUE | L28: =(B23*B28+C23*C28+D23*D28+E23*E28)/(B28+C28+D28+E28) -> 83.33333333 | N28: твоя формула
B29: -1 | C29: -1 | D29: -1 | E29: -1 | H29: =(B23*B29+C23*C29+D23*D29+E23*E29)/(B29+C29+D29+E29) -> 83.5 | I29: 1 | J29: =IF(SUM(B29:E29)=0,"вне рынка",IF(SUM(B29:D29)=0,$E$23,CHOOSE(I29,СРВЗВЕШ($B$23:$E$23,B29:E29),IF(ABS(B29)>ABS(SUM(C29:E29)),$B$23,IF(ABS(B29)<ABS(SUM(C29:D29)),($D$23*SUM(B29:D29)+$E$23*E29)/SUM(B29:E29),$E$23)),IF(ABS(SUM(B29:C29))>ABS(SUM(D29:E29)),СРВЗВЕШ($B$23:$C$23,B29:C29),IF(D29=0,$E$23,IF(OR(SUM(B29:D29)>0,ABS(SUM(B29:C29))<ABS(SUM(D29:E29))),($D$23*SUM(B29:D29)+$E$23*E29)/SUM(B29:E29)))),IF(ABS(SUM(B29:D29))>ABS(E29),СРВЗВЕШ($B$23:$D$23,B29:D29),$E$23),IF(ABS(SUM(B29:D29))>ABS(E29),($B$23*SUM(B29:C29)+$D$23*D29)/SUM(B29:D29),$E$23),IF(ABS(B29)>ABS(SUM(C29:D29)),($B$23*SUM(B29:D29)+$E$23*E29)/SUM(B29:E29),$D$23),IF(ABS(B29)>ABS(SUM(C29:D29)),($B$23*B29+$C$23*C29+$E$23*E29)/SUM(B29,C29,E29),$D$23)))) -> 83.5 | K29: TRUE | L29: =(B23*B29+C23*C29+D23*D29+E23*E29)/(B29+C29+D29+E29) -> 83.5 | N29: твоя формула
B30: -1 | C30: -1 | D30: -1 | E30: 0 | H30: =(B23*B30+C23*C30+D23*D30+E23*E30)/(B30+C30+D30+E30) -> 83 | I30: 1 | J30: =IF(SUM(B30:E30)=0,"вне рынка",IF(SUM(B30:D30)=0,$E$23,CHOOSE(I30,СРВЗВЕШ($B$23:$E$23,B30:E30),IF(ABS(B30)>ABS(SUM(C30:E30)),$B$23,IF(ABS(B30)<ABS(SUM(C30:D30)),($D$23*SUM(B30:D30)+$E$23*E30)/SUM(B30:E30),$E$23)),IF(ABS(SUM(B30:C30))>ABS(SUM(D30:E30)),СРВЗВЕШ($B$23:$C$23,B30:C30),IF(D30=0,$E$23,IF(OR(SUM(B30:D30)>0,ABS(SUM(B30:C30))<ABS(SUM(D30:E30))),($D$23*SUM(B30:D30)+$E$23*E30)/SUM(B30:E30)))),IF(ABS(SUM(B30:D30))>ABS(E30),СРВЗВЕШ($B$23:$D$23,B30:D30),$E$23),IF(ABS(SUM(B30:D30))>ABS(E30),($B$23*SUM(B30:C30)+$D$23*D30)/SUM(B30:D30),$E$23),IF(ABS(B30)>ABS(SUM(C30:D30)),($B$23*SUM(B30:D30)+$E$23*E30)/SUM(B30:E30),$D$23),IF(ABS(B30)>ABS(SUM(C30:D30)),($B$23*B30+$C$23*C30+$E$23*E30)/SUM(B30,C30,E30),$D$23)))) -> 83 | K30: TRUE | L30: =(B23*B30+C23*C30+D23*D30+E23*E30)/(B30+C30+D30+E30) -> 83 | N30: твоя формула
B31: -1 | C31: -1 | D31: 0 | E31: 0 | H31: =(B23*B31+C23*C31+D23*D31+E23*E31)/(B31+C31+D31+E31) -> 82.5 | I31: 1 | J31: =IF(SUM(B31:E31)=0,"вне рынка",IF(SUM(B31:D31)=0,$E$23,CHOOSE(I31,СРВЗВЕШ($B$23:$E$23,B31:E31),IF(ABS(B31)>ABS(SUM(C31:E31)),$B$23,IF(ABS(B31)<ABS(SUM(C31:D31)),($D$23*SUM(B31:D31)+$E$23*E31)/SUM(B31:E31),$E$23)),IF(ABS(SUM(B31:C31))>ABS(SUM(D31:E31)),СРВЗВЕШ($B$23:$C$23,B31:C31),IF(D31=0,$E$23,IF(OR(SUM(B31:D31)>0,ABS(SUM(B31:C31))<ABS(SUM(D31:E31))),($D$23*SUM(B31:D31)+$E$23*E31)/SUM(B31:E31)))),IF(ABS(SUM(B31:D31))>ABS(E31),СРВЗВЕШ($B$23:$D$23,B31:D31),$E$23),IF(ABS(SUM(B31:D31))>ABS(E31),($B$23*SUM(B31:C31)+$D$23*D31)/SUM(B31:D31),$E$23),IF(ABS(B31)>ABS(SUM(C31:D31)),($B$23*SUM(B31:D31)+$E$23*E31)/SUM(B31:E31),$D$23),IF(ABS(B31)>ABS(SUM(C31:D31)),($B$23*B31+$C$23*C31+$E$23*E31)/SUM(B31,C31,E31),$D$23)))) -> 82.5 | K31: TRUE | L31: =(B23*B31+C23*C31+D23*D31+E23*E31)/(B31+C31+D31+E31) -> 82.5 | N31: твоя формула
B32: -1 | C32: -1 | D32: 0 | E32: -1 | H32: =(B23*B32+C23*C32+D23*D32+E23*E32)/(B32+C32+D32+E32) -> 83.33333333 | I32: 1 | J32: =IF(SUM(B32:E32)=0,"вне рынка",IF(SUM(B32:D32)=0,$E$23,CHOOSE(I32,СРВЗВЕШ($B$23:$E$23,B32:E32),IF(ABS(B32)>ABS(SUM(C32:E32)),$B$23,IF(ABS(B32)<ABS(SUM(C32:D32)),($D$23*SUM(B32:D32)+$E$23*E32)/SUM(B32:E32),$E$23)),IF(ABS(SUM(B32:C32))>ABS(SUM(D32:E32)),СРВЗВЕШ($B$23:$C$23,B32:C32),IF(D32=0,$E$23,IF(OR(SUM(B32:D32)>0,ABS(SUM(B32:C32))<ABS(SUM(D32:E32))),($D$23*SUM(B32:D32)+$E$23*E32)/SUM(B32:E32)))),IF(ABS(SUM(B32:D32))>ABS(E32),СРВЗВЕШ($B$23:$D$23,B32:D32),$E$23),IF(ABS(SUM(B32:D32))>ABS(E32),($B$23*SUM(B32:C32)+$D$23*D32)/SUM(B32:D32),$E$23),IF(ABS(B32)>ABS(SUM(C32:D32)),($B$23*SUM(B32:D32)+$E$23*E32)/SUM(B32:E32),$D$23),IF(ABS(B32)>ABS(SUM(C32:D32)),($B$23*B32+$C$23*C32+$E$23*E32)/SUM(B32,C32,E32),$D$23)))) -> 83.33333588 | K32: TRUE | L32: =(B23*B32+C23*C32+D23*D32+E23*E32)/(B32+C32+D32+E32) -> 83.33333333 | N32: твоя формула
B33: -3 | C33: 1 | D33: 1 | E33: 1 | H33: =IF(SUM(B33:E33)=0,"вне рынка") -> вне рынка | I33: 2 | J33: =IF(SUM(B33:E33)=0,"вне рынка",IF(SUM(B33:D33)=0,$E$23,CHOOSE(I33,СРВЗВЕШ($B$23:$E$23,B33:E33),IF(ABS(B33)>ABS(SUM(C33:E33)),$B$23,IF(ABS(B33)<ABS(SUM(C33:D33)),($D$23*SUM(B33:D33)+$E$23*E33)/SUM(B33:E33),$E$23)),IF(ABS(SUM(B33:C33))>ABS(SUM(D33:E33)),СРВЗВЕШ($B$23:$C$23,B33:C33),IF(D33=0,$E$23,IF(OR(SUM(B33:D33)>0,ABS(SUM(B33:C33))<ABS(SUM(D33:E33))),($D$23*SUM(B33:D33)+$E$23*E33)/SUM(B33:E33)))),IF(ABS(SUM(B33:D33))>ABS(E33),СРВЗВЕШ($B$23:$D$23,B33:D33),$E$23),IF(ABS(SUM(B33:D33))>ABS(E33),($B$23*SUM(B33:C33)+$D$23*D33)/SUM(B33:D33),$E$23),IF(ABS(B33)>ABS(SUM(C33:D33)),($B$23*SUM(B33:D33)+$E$23*E33)/SUM(B33:E33),$D$23),IF(ABS(B33)>ABS(SUM(C33:D33)),($B$23*B33+$C$23*C33+$E$23*E33)/SUM(B33,C33,E33),$D$23)))) -> вне рынка | K33: TRUE | L33: =IF(SUM(B33:E33)=0,"вне рынка") -> вне рынка | N33: твоя формула | R33: -5 | S33: 3 | T33: 3 | U33: 3 | W33: -4 | X33: 1 | Y33: 1 | Z33: 2
B34: -3 | C34: 1 | D34: 2 | E34: 1 | H34: =E23 -> 85 | I34: 2 | J34: =IF(SUM(B34:E34)=0,"вне рынка",IF(SUM(B34:D34)=0,$E$23,CHOOSE(I34,СРВЗВЕШ($B$23:$E$23,B34:E34),IF(ABS(B34)>ABS(SUM(C34:E34)),$B$23,IF(ABS(B34)<ABS(SUM(C34:D34)),($D$23*SUM(B34:D34)+$E$23*E34)/SUM(B34:E34),$E$23)),IF(ABS(SUM(B34:C34))>ABS(SUM(D34:E34)),СРВЗВЕШ($B$23:$C$23,B34:C34),IF(D34=0,$E$23,IF(OR(SUM(B34:D34)>0,ABS(SUM(B34:C34))<ABS(SUM(D34:E34))),($D$23*SUM(B34:D34)+$E$23*E34)/SUM(B34:E34)))),IF(ABS(SUM(B34:D34))>ABS(E34),СРВЗВЕШ($B$23:$D$23,B34:D34),$E$23),IF(ABS(SUM(B34:D34))>ABS(E34),($B$23*SUM(B34:C34)+$D$23*D34)/SUM(B34:D34),$E$23),IF(ABS(B34)>ABS(SUM(C34:D34)),($B$23*SUM(B34:D34)+$E$23*E34)/SUM(B34:E34),$D$23),IF(ABS(B34)>ABS(SUM(C34:D34)),($B$23*B34+$C$23*C34+$E$23*E34)/SUM(B34,C34,E34),$D$23)))) -> 85 | K34: TRUE | L34: =IF(SUM(B34:D34)=0,E23) -> 85 | M34: нужно учесть, что бы 4е число было не равно нулю | N34: 1
B35: -3 | C35: 2 | D35: 2 | E35: 1 | H35: =(D23*(B35+C35+D35)+E23*E35)/((B35+C35+D35)+E35) -> 84.5 | I35: 2 | J35: =IF(SUM(B35:E35)=0,"вне рынка",IF(SUM(B35:D35)=0,$E$23,CHOOSE(I35,СРВЗВЕШ($B$23:$E$23,B35:E35),IF(ABS(B35)>ABS(SUM(C35:E35)),$B$23,IF(ABS(B35)<ABS(SUM(C35:D35)),($D$23*SUM(B35:D35)+$E$23*E35)/SUM(B35:E35),$E$23)),IF(ABS(SUM(B35:C35))>ABS(SUM(D35:E35)),СРВЗВЕШ($B$23:$C$23,B35:C35),IF(D35=0,$E$23,IF(OR(SUM(B35:D35)>0,ABS(SUM(B35:C35))<ABS(SUM(D35:E35))),($D$23*SUM(B35:D35)+$E$23*E35)/SUM(B35:E35)))),IF(ABS(SUM(B35:D35))>ABS(E35),СРВЗВЕШ($B$23:$D$23,B35:D35),$E$23),IF(ABS(SUM(B35:D35))>ABS(E35),($B$23*SUM(B35:C35)+$D$23*D35)/SUM(B35:D35),$E$23),IF(ABS(B35)>ABS(SUM(C35:D35)),($B$23*SUM(B35:D35)+$E$23*E35)/SUM(B35:E35),$D$23),IF(ABS(B35)>ABS(SUM(C35:D35)),($B$23*B35+$C$23*C35+$E$23*E35)/SUM(B35,C35,E35),$D$23)))) -> 84.5 | K35: TRUE | N35: твоя формула
B36: -4 | C36: 1 | D36: 1 | E36: 1 | H36: =(B23*(B36+C36+D36+E36))/(B36+C36+D36+E36) -> 82 | I36: 2 | J36: =IF(SUM(B36:E36)=0,"вне рынка",IF(SUM(B36:D36)=0,$E$23,CHOOSE(I36,СРВЗВЕШ($B$23:$E$23,B36:E36),IF(ABS(B36)>ABS(SUM(C36:E36)),$B$23,IF(ABS(B36)<ABS(SUM(C36:D36)),($D$23*SUM(B36:D36)+$E$23*E36)/SUM(B36:E36),$E$23)),IF(ABS(SUM(B36:C36))>ABS(SUM(D36:E36)),СРВЗВЕШ($B$23:$C$23,B36:C36),IF(D36=0,$E$23,IF(OR(SUM(B36:D36)>0,ABS(SUM(B36:C36))<ABS(SUM(D36:E36))),($D$23*SUM(B36:D36)+$E$23*E36)/SUM(B36:E36)))),IF(ABS(SUM(B36:D36))>ABS(E36),СРВЗВЕШ($B$23:$D$23,B36:D36),$E$23),IF(ABS(SUM(B36:D36))>ABS(E36),($B$23*SUM(B36:C36)+$D$23*D36)/SUM(B36:D36),$E$23),IF(ABS(B36)>ABS(SUM(C36:D36)),($B$23*SUM(B36:D36)+$E$23*E36)/SUM(B36:E36),$D$23),IF(ABS(B36)>ABS(SUM(C36:D36)),($B$23*B36+$C$23*C36+$E$23*E36)/SUM(B36,C36,E36),$D$23)))) -> 82 | K36: TRUE | N36: твоя формула
B37: -3 | C37: -2 | D37: 1 | E37: 1 | F37: не правильно считает, если к примеру последнее число будет равно 7, то ответ вообще улетит за грани, хотя 38 39 строка по этому принципу считает верно! | H37: =(B23*B37+C23*C37+D23*0+E37*0)/(B37+C37+D37*0+E37*0) -> 82.4 | I37: 3 | J37: =IF(SUM(B37:E37)=0,"вне рынка",IF(SUM(B37:D37)=0,$E$23,CHOOSE(I37,СРВЗВЕШ($B$23:$E$23,B37:E37),IF(ABS(B37)>ABS(SUM(C37:E37)),$B$23,IF(ABS(B37)<ABS(SUM(C37:D37)),($D$23*SUM(B37:D37)+$E$23*E37)/SUM(B37:E37),$E$23)),IF(ABS(SUM(B37:C37))>ABS(SUM(D37:E37)),СРВЗВЕШ($B$23:$C$23,B37:C37),IF(D37=0,$E$23,IF(OR(SUM(B37:D37)>0,ABS(SUM(B37:C37))<ABS(SUM(D37:E37))),($D$23*SUM(B37:D37)+$E$23*E37)/SUM(B37:E37)))),IF(ABS(SUM(B37:D37))>ABS(E37),СРВЗВЕШ($B$23:$D$23,B37:D37),$E$23),IF(ABS(SUM(B37:D37))>ABS(E37),($B$23*SUM(B37:C37)+$D$23*D37)/SUM(B37:D37),$E$23),IF(ABS(B37)>ABS(SUM(C37:D37)),($B$23*SUM(B37:D37)+$E$23*E37)/SUM(B37:E37),$D$23),IF(ABS(B37)>ABS(SUM(C37:D37)),($B$23*B37+$C$23*C37+$E$23*E37)/SUM(B37,C37,E37),$D$23)))) -> 82.40000153 | K37: TRUE | N37: тут нужно:(меньше) если первые два с одним знаком и вторые два с другим и нет нулей,и сумма первых двух меньше суммы вторых, то считается по твоей формуле верно.в противном случае работают формулы строк 38 39 40 | R37: -1 | S37: -1 | T37: 3 | U37: 1 | W37: -1 | X37: -1 | Y37: 1 | Z37: 1
B38: -3 | C38: -2 | D38: 5 | E38: 1 | H38: =E23 -> 85 | I38: 3 | J38: =IF(SUM(B38:E38)=0,"вне рынка",IF(SUM(B38:D38)=0,$E$23,CHOOSE(I38,СРВЗВЕШ($B$23:$E$23,B38:E38),IF(ABS(B38)>ABS(SUM(C38:E38)),$B$23,IF(ABS(B38)<ABS(SUM(C38:D38)),($D$23*SUM(B38:D38)+$E$23*E38)/SUM(B38:E38),$E$23)),IF(ABS(SUM(B38:C38))>ABS(SUM(D38:E38)),СРВЗВЕШ($B$23:$C$23,B38:C38),IF(D38=0,$E$23,IF(OR(SUM(B38:D38)>0,ABS(SUM(B38:C38))<ABS(SUM(D38:E38))),($D$23*SUM(B38:D38)+$E$23*E38)/SUM(B38:E38)))),IF(ABS(SUM(B38:D38))>ABS(E38),СРВЗВЕШ($B$23:$D$23,B38:D38),$E$23),IF(ABS(SUM(B38:D38))>ABS(E38),($B$23*SUM(B38:C38)+$D$23*D38)/SUM(B38:D38),$E$23),IF(ABS(B38)>ABS(SUM(C38:D38)),($B$23*SUM(B38:D38)+$E$23*E38)/SUM(B38:E38),$D$23),IF(ABS(B38)>ABS(SUM(C38:D38)),($B$23*B38+$C$23*C38+$E$23*E38)/SUM(B38,C38,E38),$D$23)))) -> 85 | K38: TRUE | L38: =IF(SUM(B38:D38)=0,E23) -> 85 | M38: нужно учесть, что бы 4е число было не равно нулю | N38: 1
B39: -3 | C39: -2 | D39: 6 | E39: 1 | H39: =(D23*(B39+C39+D39)+E23*E39)/(B39+C39+D39+E39) -> 84.5 | I39: 3 | J39: =IF(SUM(B39:E39)=0,"вне рынка",IF(SUM(B39:D39)=0,$E$23,CHOOSE(I39,СРВЗВЕШ($B$23:$E$23,B39:E39),IF(ABS(B39)>ABS(SUM(C39:E39)),$B$23,IF(ABS(B39)<ABS(SUM(C39:D39)),($D$23*SUM(B39:D39)+$E$23*E39)/SUM(B39:E39),$E$23)),IF(ABS(SUM(B39:C39))>ABS(SUM(D39:E39)),СРВЗВЕШ($B$23:$C$23,B39:C39),IF(D39=0,$E$23,IF(OR(SUM(B39:D39)>0,ABS(SUM(B39:C39))<ABS(SUM(D39:E39))),($D$23*SUM(B39:D39)+$E$23*E39)/SUM(B39:E39)))),IF(ABS(SUM(B39:D39))>ABS(E39),СРВЗВЕШ($B$23:$D$23,B39:D39),$E$23),IF(ABS(SUM(B39:D39))>ABS(E39),($B$23*SUM(B39:C39)+$D$23*D39)/SUM(B39:D39),$E$23),IF(ABS(B39)>ABS(SUM(C39:D39)),($B$23*SUM(B39:D39)+$E$23*E39)/SUM(B39:E39),$D$23),IF(ABS(B39)>ABS(SUM(C39:D39)),($B$23*B39+$C$23*C39+$E$23*E39)/SUM(B39,C39,E39),$D$23)))) -> 84.5 | K39: TRUE | N39: твоя формула
B40: -3 | C40: -2 | D40: 4 | E40: 1 | H40: =IF(SUM(B40:E40)=0,"вне рынка") -> вне рынка | I40: 3 | J40: =IF(SUM(B40:E40)=0,"вне рынка",IF(SUM(B40:D40)=0,$E$23,CHOOSE(I40,СРВЗВЕШ($B$23:$E$23,B40:E40),IF(ABS(B40)>ABS(SUM(C40:E40)),$B$23,IF(ABS(B40)<ABS(SUM(C40:D40)),($D$23*SUM(B40:D40)+$E$23*E40)/SUM(B40:E40),$E$23)),IF(ABS(SUM(B40:C40))>ABS(SUM(D40:E40)),СРВЗВЕШ($B$23:$C$23,B40:C40),IF(D40=0,$E$23,IF(OR(SUM(B40:D40)>0,ABS(SUM(B40:C40))<ABS(SUM(D40:E40))),($D$23*SUM(B40:D40)+$E$23*E40)/SUM(B40:E40)))),IF(ABS(SUM(B40:D40))>ABS(E40),СРВЗВЕШ($B$23:$D$23,B40:D40),$E$23),IF(ABS(SUM(B40:D40))>ABS(E40),($B$23*SUM(B40:C40)+$D$23*D40)/SUM(B40:D40),$E$23),IF(ABS(B40)>ABS(SUM(C40:D40)),($B$23*SUM(B40:D40)+$E$23*E40)/SUM(B40:E40),$D$23),IF(ABS(B40)>ABS(SUM(C40:D40)),($B$23*B40+$C$23*C40+$E$23*E40)/SUM(B40,C40,E40),$D$23)))) -> вне рынка | K40: TRUE | L40: =IF(SUM(B40:E40)=0,"вне рынка") -> вне рынка | N40: твоя формула
B41: -3 | C41: -2 | D41: -1 | E41: 1 | H41: =(B23*B41+C23*C41+D23*D41+E23*E41*0)/(B41+C41+D41+E41*0) -> 82.66666667 | I41: 4 | J41: =IF(SUM(B41:E41)=0,"вне рынка",IF(SUM(B41:D41)=0,$E$23,CHOOSE(I41,СРВЗВЕШ($B$23:$E$23,B41:E41),IF(ABS(B41)>ABS(SUM(C41:E41)),$B$23,IF(ABS(B41)<ABS(SUM(C41:D41)),($D$23*SUM(B41:D41)+$E$23*E41)/SUM(B41:E41),$E$23)),IF(ABS(SUM(B41:C41))>ABS(SUM(D41:E41)),СРВЗВЕШ($B$23:$C$23,B41:C41),IF(D41=0,$E$23,IF(OR(SUM(B41:D41)>0,ABS(SUM(B41:C41))<ABS(SUM(D41:E41))),($D$23*SUM(B41:D41)+$E$23*E41)/SUM(B41:E41)))),IF(ABS(SUM(B41:D41))>ABS(E41),СРВЗВЕШ($B$23:$D$23,B41:D41),$E$23),IF(ABS(SUM(B41:D41))>ABS(E41),($B$23*SUM(B41:C41)+$D$23*D41)/SUM(B41:D41),$E$23),IF(ABS(B41)>ABS(SUM(C41:D41)),($B$23*SUM(B41:D41)+$E$23*E41)/SUM(B41:E41),$D$23),IF(ABS(B41)>ABS(SUM(C41:D41)),($B$23*B41+$C$23*C41+$E$23*E41)/SUM(B41,C41,E41),$D$23)))) -> 82.66666412 | K41: TRUE | N41: твоя формула | R41: -1 | S41: -1 | T41: -1 | U41: 3
B42: -3 | C42: -2 | D42: -1 | E42: 6 | H42: =IF(SUM(B42:E42)=0,"вне рынка") -> вне рынка | I42: 4 | J42: =IF(SUM(B42:E42)=0,"вне рынка",IF(SUM(B42:D42)=0,$E$23,CHOOSE(I42,СРВЗВЕШ($B$23:$E$23,B42:E42),IF(ABS(B42)>ABS(SUM(C42:E42)),$B$23,IF(ABS(B42)<ABS(SUM(C42:D42)),($D$23*SUM(B42:D42)+$E$23*E42)/SUM(B42:E42),$E$23)),IF(ABS(SUM(B42:C42))>ABS(SUM(D42:E42)),СРВЗВЕШ($B$23:$C$23,B42:C42),IF(D42=0,$E$23,IF(OR(SUM(B42:D42)>0,ABS(SUM(B42:C42))<ABS(SUM(D42:E42))),($D$23*SUM(B42:D42)+$E$23*E42)/SUM(B42:E42)))),IF(ABS(SUM(B42:D42))>ABS(E42),СРВЗВЕШ($B$23:$D$23,B42:D42),$E$23),IF(ABS(SUM(B42:D42))>ABS(E42),($B$23*SUM(B42:C42)+$D$23*D42)/SUM(B42:D42),$E$23),IF(ABS(B42)>ABS(SUM(C42:D42)),($B$23*SUM(B42:D42)+$E$23*E42)/SUM(B42:E42),$D$23),IF(ABS(B42)>ABS(SUM(C42:D42)),($B$23*B42+$C$23*C42+$E$23*E42)/SUM(B42,C42,E42),$D$23)))) -> вне рынка | K42: TRUE | N42: твоя формула
B43: -3 | C43: -2 | D43: -1 | E43: 7 | H43: =(E23*(B43+C43+D43+E43))/(B43+C43+D43+E43) -> 85 | I43: 4 | J43: =IF(SUM(B43:E43)=0,"вне рынка",IF(SUM(B43:D43)=0,$E$23,CHOOSE(I43,СРВЗВЕШ($B$23:$E$23,B43:E43),IF(ABS(B43)>ABS(SUM(C43:E43)),$B$23,IF(ABS(B43)<ABS(SUM(C43:D43)),($D$23*SUM(B43:D43)+$E$23*E43)/SUM(B43:E43),$E$23)),IF(ABS(SUM(B43:C43))>ABS(SUM(D43:E43)),СРВЗВЕШ($B$23:$C$23,B43:C43),IF(D43=0,$E$23,IF(OR(SUM(B43:D43)>0,ABS(SUM(B43:C43))<ABS(SUM(D43:E43))),($D$23*SUM(B43:D43)+$E$23*E43)/SUM(B43:E43)))),IF(ABS(SUM(B43:D43))>ABS(E43),СРВЗВЕШ($B$23:$D$23,B43:D43),$E$23),IF(ABS(SUM(B43:D43))>ABS(E43),($B$23*SUM(B43:C43)+$D$23*D43)/SUM(B43:D43),$E$23),IF(ABS(B43)>ABS(SUM(C43:D43)),($B$23*SUM(B43:D43)+$E$23*E43)/SUM(B43:E43),$D$23),IF(ABS(B43)>ABS(SUM(C43:D43)),($B$23*B43+$C$23*C43+$E$23*E43)/SUM(B43,C43,E43),$D$23)))) -> 85 | K43: TRUE | N43: твоя формула
B44: 3 | C44: -1 | D44: -1 | E44: -1 | H44: =IF(SUM(B44:E44)=0,"вне рынка") -> вне рынка | I44: 2 | J44: =IF(SUM(B44:E44)=0,"вне рынка",IF(SUM(B44:D44)=0,$E$23,CHOOSE(I44,СРВЗВЕШ($B$23:$E$23,B44:E44),IF(ABS(B44)>ABS(SUM(C44:E44)),$B$23,IF(ABS(B44)<ABS(SUM(C44:D44)),($D$23*SUM(B44:D44)+$E$23*E44)/SUM(B44:E44),$E$23)),IF(ABS(SUM(B44:C44))>ABS(SUM(D44:E44)),СРВЗВЕШ($B$23:$C$23,B44:C44),IF(D44=0,$E$23,IF(OR(SUM(B44:D44)>0,ABS(SUM(B44:C44))<ABS(SUM(D44:E44))),($D$23*SUM(B44:D44)+$E$23*E44)/SUM(B44:E44)))),IF(ABS(SUM(B44:D44))>ABS(E44),СРВЗВЕШ($B$23:$D$23,B44:D44),$E$23),IF(ABS(SUM(B44:D44))>ABS(E44),($B$23*SUM(B44:C44)+$D$23*D44)/SUM(B44:D44),$E$23),IF(ABS(B44)>ABS(SUM(C44:D44)),($B$23*SUM(B44:D44)+$E$23*E44)/SUM(B44:E44),$D$23),IF(ABS(B44)>ABS(SUM(C44:D44)),($B$23*B44+$C$23*C44+$E$23*E44)/SUM(B44,C44,E44),$D$23)))) -> вне рынка | K44: TRUE | L44: =IF(SUM(B44:E44)=0,"вне рынка") -> вне рынка | N44: твоя формула
B45: 4 | C45: -1 | D45: -6 | E45: -1 | H45: =(B23*(B45+C45+D45+E45))/(B45+C45+D45+E45) -> 82 | I45: 2 | J45: =IF(SUM(B45:E45)=0,"вне рынка",IF(SUM(B45:D45)=0,$E$23,CHOOSE(I45,СРВЗВЕШ($B$23:$E$23,B45:E45),IF(ABS(B45)>ABS(SUM(C45:E45)),$B$23,IF(ABS(B45)<ABS(SUM(C45:D45)),($D$23*SUM(B45:D45)+$E$23*E45)/SUM(B45:E45),$E$23)),IF(ABS(SUM(B45:C45))>ABS(SUM(D45:E45)),СРВЗВЕШ($B$23:$C$23,B45:C45),IF(D45=0,$E$23,IF(OR(SUM(B45:D45)>0,ABS(SUM(B45:C45))<ABS(SUM(D45:E45))),($D$23*SUM(B45:D45)+$E$23*E45)/SUM(B45:E45)))),IF(ABS(SUM(B45:D45))>ABS(E45),СРВЗВЕШ($B$23:$D$23,B45:D45),$E$23),IF(ABS(SUM(B45:D45))>ABS(E45),($B$23*SUM(B45:C45)+$D$23*D45)/SUM(B45:D45),$E$23),IF(ABS(B45)>ABS(SUM(C45:D45)),($B$23*SUM(B45:D45)+$E$23*E45)/SUM(B45:E45),$D$23),IF(ABS(B45)>ABS(SUM(C45:D45)),($B$23*B45+$C$23*C45+$E$23*E45)/SUM(B45,C45,E45),$D$23)))) -> 84.25 | K45: FALSE | N45: твоя формула
B46: 3 | C46: -2 | D46: -2 | E46: -1 | H46: =(D23*(B46+C46+D46)+E23*E46)/(B46+C46+D46+E46) -> 84.5 | I46: 2 | J46: =IF(SUM(B46:E46)=0,"вне рынка",IF(SUM(B46:D46)=0,$E$23,CHOOSE(I46,СРВЗВЕШ($B$23:$E$23,B46:E46),IF(ABS(B46)>ABS(SUM(C46:E46)),$B$23,IF(ABS(B46)<ABS(SUM(C46:D46)),($D$23*SUM(B46:D46)+$E$23*E46)/SUM(B46:E46),$E$23)),IF(ABS(SUM(B46:C46))>ABS(SUM(D46:E46)),СРВЗВЕШ($B$23:$C$23,B46:C46),IF(D46=0,$E$23,IF(OR(SUM(B46:D46)>0,ABS(SUM(B46:C46))<ABS(SUM(D46:E46))),($D$23*SUM(B46:D46)+$E$23*E46)/SUM(B46:E46)))),IF(ABS(SUM(B46:D46))>ABS(E46),СРВЗВЕШ($B$23:$D$23,B46:D46),$E$23),IF(ABS(SUM(B46:D46))>ABS(E46),($B$23*SUM(B46:C46)+$D$23*D46)/SUM(B46:D46),$E$23),IF(ABS(B46)>ABS(SUM(C46:D46)),($B$23*SUM(B46:D46)+$E$23*E46)/SUM(B46:E46),$D$23),IF(ABS(B46)>ABS(SUM(C46:D46)),($B$23*B46+$C$23*C46+$E$23*E46)/SUM(B46,C46,E46),$D$23)))) -> 84.5 | K46: TRUE | N46: твоя формула
B47: 3 | C47: -1 | D47: -1 | E47: -2 | H47: =(E23*(B47+C47+D47+E47)/(B47+C47+D47+E47)) -> 85 | I47: 2 | J47: =IF(SUM(B47:E47)=0,"вне рынка",IF(SUM(B47:D47)=0,$E$23,CHOOSE(I47,СРВЗВЕШ($B$23:$E$23,B47:E47),IF(ABS(B47)>ABS(SUM(C47:E47)),$B$23,IF(ABS(B47)<ABS(SUM(C47:D47)),($D$23*SUM(B47:D47)+$E$23*E47)/SUM(B47:E47),$E$23)),IF(ABS(SUM(B47:C47))>ABS(SUM(D47:E47)),СРВЗВЕШ($B$23:$C$23,B47:C47),IF(D47=0,$E$23,IF(OR(SUM(B47:D47)>0,ABS(SUM(B47:C47))<ABS(SUM(D47:E47))),($D$23*SUM(B47:D47)+$E$23*E47)/SUM(B47:E47)))),IF(ABS(SUM(B47:D47))>ABS(E47),СРВЗВЕШ($B$23:$D$23,B47:D47),$E$23),IF(ABS(SUM(B47:D47))>ABS(E47),($B$23*SUM(B47:C47)+$D$23*D47)/SUM(B47:D47),$E$23),IF(ABS(B47)>ABS(SUM(C47:D47)),($B$23*SUM(B47:D47)+$E$23*E47)/SUM(B47:E47),$D$23),IF(ABS(B47)>ABS(SUM(C47:D47)),($B$23*B47+$C$23*C47+$E$23*E47)/SUM(B47,C47,E47),$D$23)))) -> 85 | K47: TRUE | N47: твоя формула
B48: 3 | C48: 1 | D48: -1 | E48: -1 | F48: не правильно считает, если к примеру последнее число будет равно -7, то ответ вообще улетит за грани, хотя 49 50 строка по этому принципу считает верно! | H48: =(B23*B48+C23*C48+D23*D48*0+E23*E48*0)/(B48+C48+D48*0+E48*0) -> 82.25 | I48: 3 | J48: =IF(SUM(B48:E48)=0,"вне рынка",IF(SUM(B48:D48)=0,$E$23,CHOOSE(I48,СРВЗВЕШ($B$23:$E$23,B48:E48),IF(ABS(B48)>ABS(SUM(C48:E48)),$B$23,IF(ABS(B48)<ABS(SUM(C48:D48)),($D$23*SUM(B48:D48)+$E$23*E48)/SUM(B48:E48),$E$23)),IF(ABS(SUM(B48:C48))>ABS(SUM(D48:E48)),СРВЗВЕШ($B$23:$C$23,B48:C48),IF(D48=0,$E$23,IF(OR(SUM(B48:D48)>0,ABS(SUM(B48:C48))<ABS(SUM(D48:E48))),($D$23*SUM(B48:D48)+$E$23*E48)/SUM(B48:E48)))),IF(ABS(SUM(B48:D48))>ABS(E48),СРВЗВЕШ($B$23:$D$23,B48:D48),$E$23),IF(ABS(SUM(B48:D48))>ABS(E48),($B$23*SUM(B48:C48)+$D$23*D48)/SUM(B48:D48),$E$23),IF(ABS(B48)>ABS(SUM(C48:D48)),($B$23*SUM(B48:D48)+$E$23*E48)/SUM(B48:E48),$D$23),IF(ABS(B48)>ABS(SUM(C48:D48)),($B$23*B48+$C$23*C48+$E$23*E48)/SUM(B48,C48,E48),$D$23)))) -> 82.25 | K48: TRUE | N48: тут нужно:(больше) если первые два с одним знаком и вторые два с другим и нет нулей,и сумма первых двух больше суммы вторых, то считается по твоей формуле верно.в противном случае работают формулы строк 49 50 51
B49: 3 | C49: 1 | D49: -4 | E49: -1 | H49: =E23 -> 85 | I49: 3 | J49: =IF(SUM(B49:E49)=0,"вне рынка",IF(SUM(B49:D49)=0,$E$23,CHOOSE(I49,СРВЗВЕШ($B$23:$E$23,B49:E49),IF(ABS(B49)>ABS(SUM(C49:E49)),$B$23,IF(ABS(B49)<ABS(SUM(C49:D49)),($D$23*SUM(B49:D49)+$E$23*E49)/SUM(B49:E49),$E$23)),IF(ABS(SUM(B49:C49))>ABS(SUM(D49:E49)),СРВЗВЕШ($B$23:$C$23,B49:C49),IF(D49=0,$E$23,IF(OR(SUM(B49:D49)>0,ABS(SUM(B49:C49))<ABS(SUM(D49:E49))),($D$23*SUM(B49:D49)+$E$23*E49)/SUM(B49:E49)))),IF(ABS(SUM(B49:D49))>ABS(E49),СРВЗВЕШ($B$23:$D$23,B49:D49),$E$23),IF(ABS(SUM(B49:D49))>ABS(E49),($B$23*SUM(B49:C49)+$D$23*D49)/SUM(B49:D49),$E$23),IF(ABS(B49)>ABS(SUM(C49:D49)),($B$23*SUM(B49:D49)+$E$23*E49)/SUM(B49:E49),$D$23),IF(ABS(B49)>ABS(SUM(C49:D49)),($B$23*B49+$C$23*C49+$E$23*E49)/SUM(B49,C49,E49),$D$23)))) -> 85 | K49: TRUE | L49: =IF(SUM(B49:D49)=0,E23) -> 85 | M49: нужно учесть, что бы 4е число было не равно нулю | N49: 1
B50: 3 | C50: 1 | D50: -5 | E50: -1 | H50: =(D23*(B50+C50+D50)+E23*E50)/(B50+C50+D50+E50) -> 84.5 | I50: 3 | J50: =IF(SUM(B50:E50)=0,"вне рынка",IF(SUM(B50:D50)=0,$E$23,CHOOSE(I50,СРВЗВЕШ($B$23:$E$23,B50:E50),IF(ABS(B50)>ABS(SUM(C50:E50)),$B$23,IF(ABS(B50)<ABS(SUM(C50:D50)),($D$23*SUM(B50:D50)+$E$23*E50)/SUM(B50:E50),$E$23)),IF(ABS(SUM(B50:C50))>ABS(SUM(D50:E50)),СРВЗВЕШ($B$23:$C$23,B50:C50),IF(D50=0,$E$23,IF(OR(SUM(B50:D50)>0,ABS(SUM(B50:C50))<ABS(SUM(D50:E50))),($D$23*SUM(B50:D50)+$E$23*E50)/SUM(B50:E50)))),IF(ABS(SUM(B50:D50))>ABS(E50),СРВЗВЕШ($B$23:$D$23,B50:D50),$E$23),IF(ABS(SUM(B50:D50))>ABS(E50),($B$23*SUM(B50:C50)+$D$23*D50)/SUM(B50:D50),$E$23),IF(ABS(B50)>ABS(SUM(C50:D50)),($B$23*SUM(B50:D50)+$E$23*E50)/SUM(B50:E50),$D$23),IF(ABS(B50)>ABS(SUM(C50:D50)),($B$23*B50+$C$23*C50+$E$23*E50)/SUM(B50,C50,E50),$D$23)))) -> 84.5 | K50: TRUE | N50: твоя формула
B51: 3 | C51: 1 | D51: -3 | E51: -1 | H51: =IF(SUM(B51:E51)=0,"вне рынка") -> вне рынка | I51: 3 | J51: =IF(SUM(B51:E51)=0,"вне рынка",IF(SUM(B51:D51)=0,$E$23,CHOOSE(I51,СРВЗВЕШ($B$23:$E$23,B51:E51),IF(ABS(B51)>ABS(SUM(C51:E51)),$B$23,IF(ABS(B51)<ABS(SUM(C51:D51)),($D$23*SUM(B51:D51)+$E$23*E51)/SUM(B51:E51),$E$23)),IF(ABS(SUM(B51:C51))>ABS(SUM(D51:E51)),СРВЗВЕШ($B$23:$C$23,B51:C51),IF(D51=0,$E$23,IF(OR(SUM(B51:D51)>0,ABS(SUM(B51:C51))<ABS(SUM(D51:E51))),($D$23*SUM(B51:D51)+$E$23*E51)/SUM(B51:E51)))),IF(ABS(SUM(B51:D51))>ABS(E51),СРВЗВЕШ($B$23:$D$23,B51:D51),$E$23),IF(ABS(SUM(B51:D51))>ABS(E51),($B$23*SUM(B51:C51)+$D$23*D51)/SUM(B51:D51),$E$23),IF(ABS(B51)>ABS(SUM(C51:D51)),($B$23*SUM(B51:D51)+$E$23*E51)/SUM(B51:E51),$D$23),IF(ABS(B51)>ABS(SUM(C51:D51)),($B$23*B51+$C$23*C51+$E$23*E51)/SUM(B51,C51,E51),$D$23)))) -> вне рынка | K51: TRUE | L51: =IF(SUM(B51:E51)=0,"вне рынка") -> вне рынка | N51: твоя формула
B52: 3 | C52: 1 | D52: 1 | E52: -5 | H52: =IF(SUM(B52:E52)=0,"вне рынка") -> вне рынка | I52: 4 | J52: =IF(SUM(B52:E52)=0,"вне рынка",IF(SUM(B52:D52)=0,$E$23,CHOOSE(I52,СРВЗВЕШ($B$23:$E$23,B52:E52),IF(ABS(B52)>ABS(SUM(C52:E52)),$B$23,IF(ABS(B52)<ABS(SUM(C52:D52)),($D$23*SUM(B52:D52)+$E$23*E52)/SUM(B52:E52),$E$23)),IF(ABS(SUM(B52:C52))>ABS(SUM(D52:E52)),СРВЗВЕШ($B$23:$C$23,B52:C52),IF(D52=0,$E$23,IF(OR(SUM(B52:D52)>0,ABS(SUM(B52:C52))<ABS(SUM(D52:E52))),($D$23*SUM(B52:D52)+$E$23*E52)/SUM(B52:E52)))),IF(ABS(SUM(B52:D52))>ABS(E52),СРВЗВЕШ($B$23:$D$23,B52:D52),$E$23),IF(ABS(SUM(B52:D52))>ABS(E52),($B$23*SUM(B52:C52)+$D$23*D52)/SUM(B52:D52),$E$23),IF(ABS(B52)>ABS(SUM(C52:D52)),($B$23*SUM(B52:D52)+$E$23*E52)/SUM(B52:E52),$D$23),IF(ABS(B52)>ABS(SUM(C52:D52)),($B$23*B52+$C$23*C52+$E$23*E52)/SUM(B52,C52,E52),$D$23)))) -> вне рынка | K52: TRUE | L52: =IF(SUM(B52:E52)=0,"вне рынка") -> вне рынка | N52: твоя формула
B53: 3 | C53: 1 | D53: 1 | E53: -2 | H53: =(B23*B53+C23*C53+D23*D53+E23*E53*0)/(B53+C53+D53+E53*0) -> 82.6 | I53: 4 | J53: =IF(SUM(B53:E53)=0,"вне рынка",IF(SUM(B53:D53)=0,$E$23,CHOOSE(I53,СРВЗВЕШ($B$23:$E$23,B53:E53),IF(ABS(B53)>ABS(SUM(C53:E53)),$B$23,IF(ABS(B53)<ABS(SUM(C53:D53)),($D$23*SUM(B53:D53)+$E$23*E53)/SUM(B53:E53),$E$23)),IF(ABS(SUM(B53:C53))>ABS(SUM(D53:E53)),СРВЗВЕШ($B$23:$C$23,B53:C53),IF(D53=0,$E$23,IF(OR(SUM(B53:D53)>0,ABS(SUM(B53:C53))<ABS(SUM(D53:E53))),($D$23*SUM(B53:D53)+$E$23*E53)/SUM(B53:E53)))),IF(ABS(SUM(B53:D53))>ABS(E53),СРВЗВЕШ($B$23:$D$23,B53:D53),$E$23),IF(ABS(SUM(B53:D53))>ABS(E53),($B$23*SUM(B53:C53)+$D$23*D53)/SUM(B53:D53),$E$23),IF(ABS(B53)>ABS(SUM(C53:D53)),($B$23*SUM(B53:D53)+$E$23*E53)/SUM(B53:E53),$D$23),IF(ABS(B53)>ABS(SUM(C53:D53)),($B$23*B53+$C$23*C53+$E$23*E53)/SUM(B53,C53,E53),$D$23)))) -> 82.59999847 | K53: TRUE | N53: твоя формула
B54: 3 | C54: 1 | D54: 1 | E54: -6 | H54: =(E23*(B54+C54+D54+E54)/(B54+C54+D54+E54)) -> 85 | I54: 4 | J54: =IF(SUM(B54:E54)=0,"вне рынка",IF(SUM(B54:D54)=0,$E$23,CHOOSE(I54,СРВЗВЕШ($B$23:$E$23,B54:E54),IF(ABS(B54)>ABS(SUM(C54:E54)),$B$23,IF(ABS(B54)<ABS(SUM(C54:D54)),($D$23*SUM(B54:D54)+$E$23*E54)/SUM(B54:E54),$E$23)),IF(ABS(SUM(B54:C54))>ABS(SUM(D54:E54)),СРВЗВЕШ($B$23:$C$23,B54:C54),IF(D54=0,$E$23,IF(OR(SUM(B54:D54)>0,ABS(SUM(B54:C54))<ABS(SUM(D54:E54))),($D$23*SUM(B54:D54)+$E$23*E54)/SUM(B54:E54)))),IF(ABS(SUM(B54:D54))>ABS(E54),СРВЗВЕШ($B$23:$D$23,B54:D54),$E$23),IF(ABS(SUM(B54:D54))>ABS(E54),($B$23*SUM(B54:C54)+$D$23*D54)/SUM(B54:D54),$E$23),IF(ABS(B54)>ABS(SUM(C54:D54)),($B$23*SUM(B54:D54)+$E$23*E54)/SUM(B54:E54),$D$23),IF(ABS(B54)>ABS(SUM(C54:D54)),($B$23*B54+$C$23*C54+$E$23*E54)/SUM(B54,C54,E54),$D$23)))) -> 85 | K54: TRUE | N54: твоя формула
B55: 3 | C55: -2 | D55: 1 | E55: -2 | H55: =IF(SUM(B55:E55)=0,"вне рынка") -> вне рынка | I55: 5 | J55: =IF(SUM(B55:E55)=0,"вне рынка",IF(SUM(B55:D55)=0,$E$23,CHOOSE(I55,СРВЗВЕШ($B$23:$E$23,B55:E55),IF(ABS(B55)>ABS(SUM(C55:E55)),$B$23,IF(ABS(B55)<ABS(SUM(C55:D55)),($D$23*SUM(B55:D55)+$E$23*E55)/SUM(B55:E55),$E$23)),IF(ABS(SUM(B55:C55))>ABS(SUM(D55:E55)),СРВЗВЕШ($B$23:$C$23,B55:C55),IF(D55=0,$E$23,IF(OR(SUM(B55:D55)>0,ABS(SUM(B55:C55))<ABS(SUM(D55:E55))),($D$23*SUM(B55:D55)+$E$23*E55)/SUM(B55:E55)))),IF(ABS(SUM(B55:D55))>ABS(E55),СРВЗВЕШ($B$23:$D$23,B55:D55),$E$23),IF(ABS(SUM(B55:D55))>ABS(E55),($B$23*SUM(B55:C55)+$D$23*D55)/SUM(B55:D55),$E$23),IF(ABS(B55)>ABS(SUM(C55:D55)),($B$23*SUM(B55:D55)+$E$23*E55)/SUM(B55:E55),$D$23),IF(ABS(B55)>ABS(SUM(C55:D55)),($B$23*B55+$C$23*C55+$E$23*E55)/SUM(B55,C55,E55),$D$23)))) -> вне рынка | K55: TRUE | L55: =IF(SUM(B55:E55)=0,"вне рынка") -> вне рынка | N55: твоя формула
B56: 3 | C56: -2 | D56: 1 | E56: -1 | H56: =(B23*(B56+C56)+C23*C56*0+D23*D56+E23*E56*0)/((B56+C56)+C56*0+D56+E56*0) -> 83 | I56: 5 | J56: =IF(SUM(B56:E56)=0,"вне рынка",IF(SUM(B56:D56)=0,$E$23,CHOOSE(I56,СРВЗВЕШ($B$23:$E$23,B56:E56),IF(ABS(B56)>ABS(SUM(C56:E56)),$B$23,IF(ABS(B56)<ABS(SUM(C56:D56)),($D$23*SUM(B56:D56)+$E$23*E56)/SUM(B56:E56),$E$23)),IF(ABS(SUM(B56:C56))>ABS(SUM(D56:E56)),СРВЗВЕШ($B$23:$C$23,B56:C56),IF(D56=0,$E$23,IF(OR(SUM(B56:D56)>0,ABS(SUM(B56:C56))<ABS(SUM(D56:E56))),($D$23*SUM(B56:D56)+$E$23*E56)/SUM(B56:E56)))),IF(ABS(SUM(B56:D56))>ABS(E56),СРВЗВЕШ($B$23:$D$23,B56:D56),$E$23),IF(ABS(SUM(B56:D56))>ABS(E56),($B$23*SUM(B56:C56)+$D$23*D56)/SUM(B56:D56),$E$23),IF(ABS(B56)>ABS(SUM(C56:D56)),($B$23*SUM(B56:D56)+$E$23*E56)/SUM(B56:E56),$D$23),IF(ABS(B56)>ABS(SUM(C56:D56)),($B$23*B56+$C$23*C56+$E$23*E56)/SUM(B56,C56,E56),$D$23)))) -> 83 | K56: TRUE | N56: твоя формула
B57: 3 | C57: -2 | D57: 1 | E57: -3 | H57: =(E23*(B57+C57+D57+E57))/(B57+C57+D57+E57) -> 85 | I57: =IF(ОДИНАКЗНАК(B57:E57),1,IF(ОДИНАКЗНАК(C57:E57),2,IF(AND(ОДИНАКЗНАК(B57:C57),ОДИНАКЗНАК(D57:E57)),3,IF(ОДИНАКЗНАК(B57:D57),4,IF(AND(NOT(ОДИНАКЗНАК(B57:C57)),NOT(ОДИНАКЗНАК(C57:D57))),5,IF(AND(NOT(ОДИНАКЗНАК(B57:C57)),ОДИНАКЗНАК(C57:D57)),6,7)))))) -> 5 | J57: =IF(SUM(B57:E57)=0,"вне рынка",IF(SUM(B57:D57)=0,$E$23,CHOOSE(I57,СРВЗВЕШ($B$23:$E$23,B57:E57),IF(ABS(B57)>ABS(SUM(C57:E57)),$B$23,IF(ABS(B57)<ABS(SUM(C57:D57)),($D$23*SUM(B57:D57)+$E$23*E57)/SUM(B57:E57),$E$23)),IF(ABS(SUM(B57:C57))>ABS(SUM(D57:E57)),СРВЗВЕШ($B$23:$C$23,B57:C57),IF(D57=0,$E$23,IF(OR(SUM(B57:D57)>0,ABS(SUM(B57:C57))<ABS(SUM(D57:E57))),($D$23*SUM(B57:D57)+$E$23*E57)/SUM(B57:E57)))),IF(ABS(SUM(B57:D57))>ABS(E57),СРВЗВЕШ($B$23:$D$23,B57:D57),$E$23),IF(ABS(SUM(B57:D57))>ABS(E57),($B$23*SUM(B57:C57)+$D$23*D57)/SUM(B57:D57),$E$23),IF(ABS(B57)>ABS(SUM(C57:D57)),($B$23*SUM(B57:D57)+$E$23*E57)/SUM(B57:E57),$D$23),IF(ABS(B57)>ABS(SUM(C57:D57)),($B$23*B57+$C$23*C57+$E$23*E57)/SUM(B57,C57,E57),$D$23)))) -> 85 | K57: TRUE | N57: твоя формула
B58: -3 | C58: 2 | D58: 1 | E58: -1 | H58: =(B23*(B58+C58+D58)+C23*(B58+C58+D58)+D23*(B58+C58+D58)+E23*E58)/(B58+C58+D58+E58) -> 85 | I58: 6 | J58: =IF(SUM(B58:E58)=0,"вне рынка",IF(SUM(B58:D58)=0,$E$23,CHOOSE(I58,СРВЗВЕШ($B$23:$E$23,B58:E58),IF(ABS(B58)>ABS(SUM(C58:E58)),$B$23,IF(ABS(B58)<ABS(SUM(C58:D58)),($D$23*SUM(B58:D58)+$E$23*E58)/SUM(B58:E58),$E$23)),IF(ABS(SUM(B58:C58))>ABS(SUM(D58:E58)),СРВЗВЕШ($B$23:$C$23,B58:C58),IF(D58=0,$E$23,IF(OR(SUM(B58:D58)>0,ABS(SUM(B58:C58))<ABS(SUM(D58:E58))),($D$23*SUM(B58:D58)+$E$23*E58)/SUM(B58:E58)))),IF(ABS(SUM(B58:D58))>ABS(E58),СРВЗВЕШ($B$23:$D$23,B58:D58),$E$23),IF(ABS(SUM(B58:D58))>ABS(E58),($B$23*SUM(B58:C58)+$D$23*D58)/SUM(B58:D58),$E$23),IF(ABS(B58)>ABS(SUM(C58:D58)),($B$23*SUM(B58:D58)+$E$23*E58)/SUM(B58:E58),$D$23),IF(ABS(B58)>ABS(SUM(C58:D58)),($B$23*B58+$C$23*C58+$E$23*E58)/SUM(B58,C58,E58),$D$23)))) -> 85 | K58: TRUE | L58: =IF(SUM(B58:D58)=0,E23) -> 85 | M58: нужно учесть, что бы 4е число было не равно нулю | N58: 1
B59: -4 | C59: 2 | D59: 1 | E59: -1 | H59: =(B23*(B59+C59+D59)+C23*C59*0+D23*D59*0+E23*E59)/(B59+C59+D59+E59) -> 83.5 | I59: 6 | J59: =IF(SUM(B59:E59)=0,"вне рынка",IF(SUM(B59:D59)=0,$E$23,CHOOSE(I59,СРВЗВЕШ($B$23:$E$23,B59:E59),IF(ABS(B59)>ABS(SUM(C59:E59)),$B$23,IF(ABS(B59)<ABS(SUM(C59:D59)),($D$23*SUM(B59:D59)+$E$23*E59)/SUM(B59:E59),$E$23)),IF(ABS(SUM(B59:C59))>ABS(SUM(D59:E59)),СРВЗВЕШ($B$23:$C$23,B59:C59),IF(D59=0,$E$23,IF(OR(SUM(B59:D59)>0,ABS(SUM(B59:C59))<ABS(SUM(D59:E59))),($D$23*SUM(B59:D59)+$E$23*E59)/SUM(B59:E59)))),IF(ABS(SUM(B59:D59))>ABS(E59),СРВЗВЕШ($B$23:$D$23,B59:D59),$E$23),IF(ABS(SUM(B59:D59))>ABS(E59),($B$23*SUM(B59:C59)+$D$23*D59)/SUM(B59:D59),$E$23),IF(ABS(B59)>ABS(SUM(C59:D59)),($B$23*SUM(B59:D59)+$E$23*E59)/SUM(B59:E59),$D$23),IF(ABS(B59)>ABS(SUM(C59:D59)),($B$23*B59+$C$23*C59+$E$23*E59)/SUM(B59,C59,E59),$D$23)))) -> 83.5 | K59: TRUE | N59: твоя формула
B60: -4 | C60: 2 | D60: 3 | E60: -1 | H60: =IF(SUM(B60:E60)=0,"вне рынка") -> вне рынка | I60: 6 | J60: =IF(SUM(B60:E60)=0,"вне рынка",IF(SUM(B60:D60)=0,$E$23,CHOOSE(I60,СРВЗВЕШ($B$23:$E$23,B60:E60),IF(ABS(B60)>ABS(SUM(C60:E60)),$B$23,IF(ABS(B60)<ABS(SUM(C60:D60)),($D$23*SUM(B60:D60)+$E$23*E60)/SUM(B60:E60),$E$23)),IF(ABS(SUM(B60:C60))>ABS(SUM(D60:E60)),СРВЗВЕШ($B$23:$C$23,B60:C60),IF(D60=0,$E$23,IF(OR(SUM(B60:D60)>0,ABS(SUM(B60:C60))<ABS(SUM(D60:E60))),($D$23*SUM(B60:D60)+$E$23*E60)/SUM(B60:E60)))),IF(ABS(SUM(B60:D60))>ABS(E60),СРВЗВЕШ($B$23:$D$23,B60:D60),$E$23),IF(ABS(SUM(B60:D60))>ABS(E60),($B$23*SUM(B60:C60)+$D$23*D60)/SUM(B60:D60),$E$23),IF(ABS(B60)>ABS(SUM(C60:D60)),($B$23*SUM(B60:D60)+$E$23*E60)/SUM(B60:E60),$D$23),IF(ABS(B60)>ABS(SUM(C60:D60)),($B$23*B60+$C$23*C60+$E$23*E60)/SUM(B60,C60,E60),$D$23)))) -> вне рынка | K60: TRUE | L60: =IF(SUM(B60:E60)=0,"вне рынка") -> вне рынка | N60: твоя формула
B61: -4 | C61: 2 | D61: 4 | E61: -1 | H61: =(B23*B61*0+C23*C61*0+D23*(B61+C61+D61+E61)+E23*E61*0)/(B61+C61+D61+E61) -> 84 | I61: 6 | J61: =IF(SUM(B61:E61)=0,"вне рынка",IF(SUM(B61:D61)=0,$E$23,CHOOSE(I61,СРВЗВЕШ($B$23:$E$23,B61:E61),IF(ABS(B61)>ABS(SUM(C61:E61)),$B$23,IF(ABS(B61)<ABS(SUM(C61:D61)),($D$23*SUM(B61:D61)+$E$23*E61)/SUM(B61:E61),$E$23)),IF(ABS(SUM(B61:C61))>ABS(SUM(D61:E61)),СРВЗВЕШ($B$23:$C$23,B61:C61),IF(D61=0,$E$23,IF(OR(SUM(B61:D61)>0,ABS(SUM(B61:C61))<ABS(SUM(D61:E61))),($D$23*SUM(B61:D61)+$E$23*E61)/SUM(B61:E61)))),IF(ABS(SUM(B61:D61))>ABS(E61),СРВЗВЕШ($B$23:$D$23,B61:D61),$E$23),IF(ABS(SUM(B61:D61))>ABS(E61),($B$23*SUM(B61:C61)+$D$23*D61)/SUM(B61:D61),$E$23),IF(ABS(B61)>ABS(SUM(C61:D61)),($B$23*SUM(B61:D61)+$E$23*E61)/SUM(B61:E61),$D$23),IF(ABS(B61)>ABS(SUM(C61:D61)),($B$23*B61+$C$23*C61+$E$23*E61)/SUM(B61,C61,E61),$D$23)))) -> 84 | K61: TRUE | N61: твоя формула
B62: 3 | C62: -2 | D62: -1 | E62: 1 | H62: =(B23*(B62+C62+D62)+C23*(B62+C62+D62)+D23*(B62+C62+D62)+E23*(B62+C62+D62+E62))/(B62+C62+D62+E62) -> 85 | I62: 6 | J62: =IF(SUM(B62:E62)=0,"вне рынка",IF(SUM(B62:D62)=0,$E$23,CHOOSE(I62,СРВЗВЕШ($B$23:$E$23,B62:E62),IF(ABS(B62)>ABS(SUM(C62:E62)),$B$23,IF(ABS(B62)<ABS(SUM(C62:D62)),($D$23*SUM(B62:D62)+$E$23*E62)/SUM(B62:E62),$E$23)),IF(ABS(SUM(B62:C62))>ABS(SUM(D62:E62)),СРВЗВЕШ($B$23:$C$23,B62:C62),IF(D62=0,$E$23,IF(OR(SUM(B62:D62)>0,ABS(SUM(B62:C62))<ABS(SUM(D62:E62))),($D$23*SUM(B62:D62)+$E$23*E62)/SUM(B62:E62)))),IF(ABS(SUM(B62:D62))>ABS(E62),СРВЗВЕШ($B$23:$D$23,B62:D62),$E$23),IF(ABS(SUM(B62:D62))>ABS(E62),($B$23*SUM(B62:C62)+$D$23*D62)/SUM(B62:D62),$E$23),IF(ABS(B62)>ABS(SUM(C62:D62)),($B$23*SUM(B62:D62)+$E$23*E62)/SUM(B62:E62),$D$23),IF(ABS(B62)>ABS(SUM(C62:D62)),($B$23*B62+$C$23*C62+$E$23*E62)/SUM(B62,C62,E62),$D$23)))) -> 85 | K62: TRUE | L62: =IF(SUM(B62:D62)=0,E23) -> 85 | M62: нужно учесть, что бы 4е число было не равно нулю | N62: 1
B63: 3 | C63: -1 | D63: -1 | E63: 1 | H63: =(B23*(B63+C63+D63)+C23*C63*0+D23*D63*0+E23*E63)/(B63+C63+D63+E63) -> 83.5 | I63: 6 | J63: =IF(SUM(B63:E63)=0,"вне рынка",IF(SUM(B63:D63)=0,$E$23,CHOOSE(I63,СРВЗВЕШ($B$23:$E$23,B63:E63),IF(ABS(B63)>ABS(SUM(C63:E63)),$B$23,IF(ABS(B63)<ABS(SUM(C63:D63)),($D$23*SUM(B63:D63)+$E$23*E63)/SUM(B63:E63),$E$23)),IF(ABS(SUM(B63:C63))>ABS(SUM(D63:E63)),СРВЗВЕШ($B$23:$C$23,B63:C63),IF(D63=0,$E$23,IF(OR(SUM(B63:D63)>0,ABS(SUM(B63:C63))<ABS(SUM(D63:E63))),($D$23*SUM(B63:D63)+$E$23*E63)/SUM(B63:E63)))),IF(ABS(SUM(B63:D63))>ABS(E63),СРВЗВЕШ($B$23:$D$23,B63:D63),$E$23),IF(ABS(SUM(B63:D63))>ABS(E63),($B$23*SUM(B63:C63)+$D$23*D63)/SUM(B63:D63),$E$23),IF(ABS(B63)>ABS(SUM(C63:D63)),($B$23*SUM(B63:D63)+$E$23*E63)/SUM(B63:E63),$D$23),IF(ABS(B63)>ABS(SUM(C63:D63)),($B$23*B63+$C$23*C63+$E$23*E63)/SUM(B63,C63,E63),$D$23)))) -> 83.5 | K63: TRUE | N63: твоя формула
B64: 3 | C64: -2 | D64: -2 | E64: 1 | H64: =IF(SUM(B64:E64)=0,"вне рынка") -> вне рынка | I64: 6 | J64: =IF(SUM(B64:E64)=0,"вне рынка",IF(SUM(B64:D64)=0,$E$23,CHOOSE(I64,СРВЗВЕШ($B$23:$E$23,B64:E64),IF(ABS(B64)>ABS(SUM(C64:E64)),$B$23,IF(ABS(B64)<ABS(SUM(C64:D64)),($D$23*SUM(B64:D64)+$E$23*E64)/SUM(B64:E64),$E$23)),IF(ABS(SUM(B64:C64))>ABS(SUM(D64:E64)),СРВЗВЕШ($B$23:$C$23,B64:C64),IF(D64=0,$E$23,IF(OR(SUM(B64:D64)>0,ABS(SUM(B64:C64))<ABS(SUM(D64:E64))),($D$23*SUM(B64:D64)+$E$23*E64)/SUM(B64:E64)))),IF(ABS(SUM(B64:D64))>ABS(E64),СРВЗВЕШ($B$23:$D$23,B64:D64),$E$23),IF(ABS(SUM(B64:D64))>ABS(E64),($B$23*SUM(B64:C64)+$D$23*D64)/SUM(B64:D64),$E$23),IF(ABS(B64)>ABS(SUM(C64:D64)),($B$23*SUM(B64:D64)+$E$23*E64)/SUM(B64:E64),$D$23),IF(ABS(B64)>ABS(SUM(C64:D64)),($B$23*B64+$C$23*C64+$E$23*E64)/SUM(B64,C64,E64),$D$23)))) -> вне рынка | K64: TRUE | L64: =IF(SUM(B64:E64)=0,"вне рынка") -> вне рынка | N64: твоя формула
B65: 3 | C65: -2 | D65: -3 | E65: 1 | H65: =(B23*B65*0+C23*C65*0+D23*(B65+C65+D65+E65)+E23*E65*0)/(B65+C65+D65+E65) -> 84 | I65: 6 | J65: =IF(SUM(B65:E65)=0,"вне рынка",IF(SUM(B65:D65)=0,$E$23,CHOOSE(I65,СРВЗВЕШ($B$23:$E$23,B65:E65),IF(ABS(B65)>ABS(SUM(C65:E65)),$B$23,IF(ABS(B65)<ABS(SUM(C65:D65)),($D$23*SUM(B65:D65)+$E$23*E65)/SUM(B65:E65),$E$23)),IF(ABS(SUM(B65:C65))>ABS(SUM(D65:E65)),СРВЗВЕШ($B$23:$C$23,B65:C65),IF(D65=0,$E$23,IF(OR(SUM(B65:D65)>0,ABS(SUM(B65:C65))<ABS(SUM(D65:E65))),($D$23*SUM(B65:D65)+$E$23*E65)/SUM(B65:E65)))),IF(ABS(SUM(B65:D65))>ABS(E65),СРВЗВЕШ($B$23:$D$23,B65:D65),$E$23),IF(ABS(SUM(B65:D65))>ABS(E65),($B$23*SUM(B65:C65)+$D$23*D65)/SUM(B65:D65),$E$23),IF(ABS(B65)>ABS(SUM(C65:D65)),($B$23*SUM(B65:D65)+$E$23*E65)/SUM(B65:E65),$D$23),IF(ABS(B65)>ABS(SUM(C65:D65)),($B$23*B65+$C$23*C65+$E$23*E65)/SUM(B65,C65,E65),$D$23)))) -> 84 | K65: TRUE | N65: твоя формула
B66: -3 | C66: -1 | D66: 1 | E66: -1 | H66: =((((B23*B66+C23*C66)/(B66+C66)))*(B66+C66)+D23*D66*0+((E23*E66/E66)*E66))/(B66+C66+D66*0+E66) -> 82.8 | I66: 7 | J66: =IF(SUM(B66:E66)=0,"вне рынка",IF(SUM(B66:D66)=0,$E$23,CHOOSE(I66,СРВЗВЕШ($B$23:$E$23,B66:E66),IF(ABS(B66)>ABS(SUM(C66:E66)),$B$23,IF(ABS(B66)<ABS(SUM(C66:D66)),($D$23*SUM(B66:D66)+$E$23*E66)/SUM(B66:E66),$E$23)),IF(ABS(SUM(B66:C66))>ABS(SUM(D66:E66)),СРВЗВЕШ($B$23:$C$23,B66:C66),IF(D66=0,$E$23,IF(OR(SUM(B66:D66)>0,ABS(SUM(B66:C66))<ABS(SUM(D66:E66))),($D$23*SUM(B66:D66)+$E$23*E66)/SUM(B66:E66)))),IF(ABS(SUM(B66:D66))>ABS(E66),СРВЗВЕШ($B$23:$D$23,B66:D66),$E$23),IF(ABS(SUM(B66:D66))>ABS(E66),($B$23*SUM(B66:C66)+$D$23*D66)/SUM(B66:D66),$E$23),IF(ABS(B66)>ABS(SUM(C66:D66)),($B$23*SUM(B66:D66)+$E$23*E66)/SUM(B66:E66),$D$23),IF(ABS(B66)>ABS(SUM(C66:D66)),($B$23*B66+$C$23*C66+$E$23*E66)/SUM(B66,C66,E66),$D$23)))) -> 82.8 | K66: TRUE | M66: =((((B23*B66+C23*C66)/(B66+C66))*(B66+C66+D66))+(E23*E66))/(B66+C66+D66+E66) -> 82.9375 | N66: правильная формула в столбе М | O66: тут, если первое второе четвертое число одно знака, а третье другого,но отличное от нуля и сумма первых двух(умноженное на -1) больше третьего числа,то истина
B67: -3 | C67: -2 | D67: 5 | E67: -1 | H67: =(B23*(B67+C67+D67)+C23*(B67+C67+D67)+D23*(B67+C67+D67)+E23*(B67+C67+D67+E67))/(B67+C67+D67+E67) -> 85 | I67: 7 | J67: =IF(SUM(B67:E67)=0,"вне рынка",IF(SUM(B67:D67)=0,$E$23,CHOOSE(I67,СРВЗВЕШ($B$23:$E$23,B67:E67),IF(ABS(B67)>ABS(SUM(C67:E67)),$B$23,IF(ABS(B67)<ABS(SUM(C67:D67)),($D$23*SUM(B67:D67)+$E$23*E67)/SUM(B67:E67),$E$23)),IF(ABS(SUM(B67:C67))>ABS(SUM(D67:E67)),СРВЗВЕШ($B$23:$C$23,B67:C67),IF(D67=0,$E$23,IF(OR(SUM(B67:D67)>0,ABS(SUM(B67:C67))<ABS(SUM(D67:E67))),($D$23*SUM(B67:D67)+$E$23*E67)/SUM(B67:E67)))),IF(ABS(SUM(B67:D67))>ABS(E67),СРВЗВЕШ($B$23:$D$23,B67:D67),$E$23),IF(ABS(SUM(B67:D67))>ABS(E67),($B$23*SUM(B67:C67)+$D$23*D67)/SUM(B67:D67),$E$23),IF(ABS(B67)>ABS(SUM(C67:D67)),($B$23*SUM(B67:D67)+$E$23*E67)/SUM(B67:E67),$D$23),IF(ABS(B67)>ABS(SUM(C67:D67)),($B$23*B67+$C$23*C67+$E$23*E67)/SUM(B67,C67,E67),$D$23)))) -> 85 | K67: TRUE | L67: =IF(SUM(B67:D67)=0,E23) -> 85 | M67: нужно учесть, что бы 4е число было не равно нулю | N67: 1
B68: -3 | C68: -2 | D68: 6 | E68: -1 | H68: =IF(SUM(B68:E68)=0,"вне рынка") -> вне рынка | I68: 7 | J68: =IF(SUM(B68:E68)=0,"вне рынка",IF(SUM(B68:D68)=0,$E$23,CHOOSE(I68,СРВЗВЕШ($B$23:$E$23,B68:E68),IF(ABS(B68)>ABS(SUM(C68:E68)),$B$23,IF(ABS(B68)<ABS(SUM(C68:D68)),($D$23*SUM(B68:D68)+$E$23*E68)/SUM(B68:E68),$E$23)),IF(ABS(SUM(B68:C68))>ABS(SUM(D68:E68)),СРВЗВЕШ($B$23:$C$23,B68:C68),IF(D68=0,$E$23,IF(OR(SUM(B68:D68)>0,ABS(SUM(B68:C68))<ABS(SUM(D68:E68))),($D$23*SUM(B68:D68)+$E$23*E68)/SUM(B68:E68)))),IF(ABS(SUM(B68:D68))>ABS(E68),СРВЗВЕШ($B$23:$D$23,B68:D68),$E$23),IF(ABS(SUM(B68:D68))>ABS(E68),($B$23*SUM(B68:C68)+$D$23*D68)/SUM(B68:D68),$E$23),IF(ABS(B68)>ABS(SUM(C68:D68)),($B$23*SUM(B68:D68)+$E$23*E68)/SUM(B68:E68),$D$23),IF(ABS(B68)>ABS(SUM(C68:D68)),($B$23*B68+$C$23*C68+$E$23*E68)/SUM(B68,C68,E68),$D$23)))) -> вне рынка | K68: TRUE | L68: =IF(SUM(B68:E68)=0,"вне рынка") -> вне рынка | N68: твоя формула
B69: -3 | C69: -2 | D69: 7 | E69: -1 | H69: =(B23*B69*0+C23*C69*0+D23*(B69+C69+D69+E69)+E23*E69*0)/(B69+C69+D69+E69) -> 84 | I69: 7 | J69: =IF(SUM(B69:E69)=0,"вне рынка",IF(SUM(B69:D69)=0,$E$23,CHOOSE(I69,СРВЗВЕШ($B$23:$E$23,B69:E69),IF(ABS(B69)>ABS(SUM(C69:E69)),$B$23,IF(ABS(B69)<ABS(SUM(C69:D69)),($D$23*SUM(B69:D69)+$E$23*E69)/SUM(B69:E69),$E$23)),IF(ABS(SUM(B69:C69))>ABS(SUM(D69:E69)),СРВЗВЕШ($B$23:$C$23,B69:C69),IF(D69=0,$E$23,IF(OR(SUM(B69:D69)>0,ABS(SUM(B69:C69))<ABS(SUM(D69:E69))),($D$23*SUM(B69:D69)+$E$23*E69)/SUM(B69:E69)))),IF(ABS(SUM(B69:D69))>ABS(E69),СРВЗВЕШ($B$23:$D$23,B69:D69),$E$23),IF(ABS(SUM(B69:D69))>ABS(E69),($B$23*SUM(B69:C69)+$D$23*D69)/SUM(B69:D69),$E$23),IF(ABS(B69)>ABS(SUM(C69:D69)),($B$23*SUM(B69:D69)+$E$23*E69)/SUM(B69:E69),$D$23),IF(ABS(B69)>ABS(SUM(C69:D69)),($B$23*B69+$C$23*C69+$E$23*E69)/SUM(B69,C69,E69),$D$23)))) -> 84 | K69: TRUE | N69: твоя формула
B70: -3 | C70: 2 | D70: -3 | E70: 1 | H70: =(B23*(B70+C70)+C23*C70*0+D23*D70+E23*E70*0)/(B70+C70+D70+E70*0) -> 83.5 | I70: 5 | J70: =IF(SUM(B70:E70)=0,"вне рынка",IF(SUM(B70:D70)=0,$E$23,CHOOSE(I70,СРВЗВЕШ($B$23:$E$23,B70:E70),IF(ABS(B70)>ABS(SUM(C70:E70)),$B$23,IF(ABS(B70)<ABS(SUM(C70:D70)),($D$23*SUM(B70:D70)+$E$23*E70)/SUM(B70:E70),$E$23)),IF(ABS(SUM(B70:C70))>ABS(SUM(D70:E70)),СРВЗВЕШ($B$23:$C$23,B70:C70),IF(D70=0,$E$23,IF(OR(SUM(B70:D70)>0,ABS(SUM(B70:C70))<ABS(SUM(D70:E70))),($D$23*SUM(B70:D70)+$E$23*E70)/SUM(B70:E70)))),IF(ABS(SUM(B70:D70))>ABS(E70),СРВЗВЕШ($B$23:$D$23,B70:D70),$E$23),IF(ABS(SUM(B70:D70))>ABS(E70),($B$23*SUM(B70:C70)+$D$23*D70)/SUM(B70:D70),$E$23),IF(ABS(B70)>ABS(SUM(C70:D70)),($B$23*SUM(B70:D70)+$E$23*E70)/SUM(B70:E70),$D$23),IF(ABS(B70)>ABS(SUM(C70:D70)),($B$23*B70+$C$23*C70+$E$23*E70)/SUM(B70,C70,E70),$D$23)))) -> 83.5 | K70: TRUE | N70: твоя формула
B71: -3 | C71: 2 | D71: -2 | E71: 3 | H71: =IF(SUM(B71:E71)=0,"вне рынка") -> вне рынка | I71: 5 | J71: =IF(SUM(B71:E71)=0,"вне рынка",IF(SUM(B71:D71)=0,$E$23,CHOOSE(I71,СРВЗВЕШ($B$23:$E$23,B71:E71),IF(ABS(B71)>ABS(SUM(C71:E71)),$B$23,IF(ABS(B71)<ABS(SUM(C71:D71)),($D$23*SUM(B71:D71)+$E$23*E71)/SUM(B71:E71),$E$23)),IF(ABS(SUM(B71:C71))>ABS(SUM(D71:E71)),СРВЗВЕШ($B$23:$C$23,B71:C71),IF(D71=0,$E$23,IF(OR(SUM(B71:D71)>0,ABS(SUM(B71:C71))<ABS(SUM(D71:E71))),($D$23*SUM(B71:D71)+$E$23*E71)/SUM(B71:E71)))),IF(ABS(SUM(B71:D71))>ABS(E71),СРВЗВЕШ($B$23:$D$23,B71:D71),$E$23),IF(ABS(SUM(B71:D71))>ABS(E71),($B$23*SUM(B71:C71)+$D$23*D71)/SUM(B71:D71),$E$23),IF(ABS(B71)>ABS(SUM(C71:D71)),($B$23*SUM(B71:D71)+$E$23*E71)/SUM(B71:E71),$D$23),IF(ABS(B71)>ABS(SUM(C71:D71)),($B$23*B71+$C$23*C71+$E$23*E71)/SUM(B71,C71,E71),$D$23)))) -> вне рынка | K71: TRUE | L71: =IF(SUM(B71:E71)=0,"вне рынка") -> вне рынка | N71: твоя формула
B72: -3 | C72: 2 | D72: -2 | E72: 4 | H72: =(B23*B72*0+C23*C72*0+D23*D72*0+E23*E72)/(B72*0+C72*0+D72*0+E72) -> 85 | I72: 5 | J72: =IF(SUM(B72:E72)=0,"вне рынка",IF(SUM(B72:D72)=0,$E$23,CHOOSE(I72,СРВЗВЕШ($B$23:$E$23,B72:E72),IF(ABS(B72)>ABS(SUM(C72:E72)),$B$23,IF(ABS(B72)<ABS(SUM(C72:D72)),($D$23*SUM(B72:D72)+$E$23*E72)/SUM(B72:E72),$E$23)),IF(ABS(SUM(B72:C72))>ABS(SUM(D72:E72)),СРВЗВЕШ($B$23:$C$23,B72:C72),IF(D72=0,$E$23,IF(OR(SUM(B72:D72)>0,ABS(SUM(B72:C72))<ABS(SUM(D72:E72))),($D$23*SUM(B72:D72)+$E$23*E72)/SUM(B72:E72)))),IF(ABS(SUM(B72:D72))>ABS(E72),СРВЗВЕШ($B$23:$D$23,B72:D72),$E$23),IF(ABS(SUM(B72:D72))>ABS(E72),($B$23*SUM(B72:C72)+$D$23*D72)/SUM(B72:D72),$E$23),IF(ABS(B72)>ABS(SUM(C72:D72)),($B$23*SUM(B72:D72)+$E$23*E72)/SUM(B72:E72),$D$23),IF(ABS(B72)>ABS(SUM(C72:D72)),($B$23*B72+$C$23*C72+$E$23*E72)/SUM(B72,C72,E72),$D$23)))) -> 85 | K72: TRUE | N72: твоя формула
B73: 2 | C73: 1 | D73: -1 | E73: 1 | H73: =((((B23*B73+C23*C73)/(B73+C73)))*(B73+C73)+D23*D73*0+((E23*E73/E73)*E73))/(B73+C73+D73*0+E73) -> 83 | I73: 7 | J73: =IF(SUM(B73:E73)=0,"вне рынка",IF(SUM(B73:D73)=0,$E$23,CHOOSE(I73,СРВЗВЕШ($B$23:$E$23,B73:E73),IF(ABS(B73)>ABS(SUM(C73:E73)),$B$23,IF(ABS(B73)<ABS(SUM(C73:D73)),($D$23*SUM(B73:D73)+$E$23*E73)/SUM(B73:E73),$E$23)),IF(ABS(SUM(B73:C73))>ABS(SUM(D73:E73)),СРВЗВЕШ($B$23:$C$23,B73:C73),IF(D73=0,$E$23,IF(OR(SUM(B73:D73)>0,ABS(SUM(B73:C73))<ABS(SUM(D73:E73))),($D$23*SUM(B73:D73)+$E$23*E73)/SUM(B73:E73)))),IF(ABS(SUM(B73:D73))>ABS(E73),СРВЗВЕШ($B$23:$D$23,B73:D73),$E$23),IF(ABS(SUM(B73:D73))>ABS(E73),($B$23*SUM(B73:C73)+$D$23*D73)/SUM(B73:D73),$E$23),IF(ABS(B73)>ABS(SUM(C73:D73)),($B$23*SUM(B73:D73)+$E$23*E73)/SUM(B73:E73),$D$23),IF(ABS(B73)>ABS(SUM(C73:D73)),($B$23*B73+$C$23*C73+$E$23*E73)/SUM(B73,C73,E73),$D$23)))) -> 83 | K73: TRUE | M73: =((((B23*B73+C23*C73)/(B73+C73))*(B73+C73+D73))+(E23*E73))/(B73+C73+D73+E73) -> 83.22222222 | N73: правильная формула в столбе М | O73: тут, если первое второе четвертое число одно знака, а третье другого,но отличное от нуля и сумма первых двух больше третьего числа,то истина
B74: 3 | C74: 2 | D74: -5 | E74: 1 | H74: =(B23*(B74+C74+D74)+C23*(B74+C74+D74)+D23*(B74+C74+D74)+E23*(B74+C74+D74+E74))/(B74+C74+D74+E74) -> 85 | I74: 7 | J74: =IF(SUM(B74:E74)=0,"вне рынка",IF(SUM(B74:D74)=0,$E$23,CHOOSE(I74,СРВЗВЕШ($B$23:$E$23,B74:E74),IF(ABS(B74)>ABS(SUM(C74:E74)),$B$23,IF(ABS(B74)<ABS(SUM(C74:D74)),($D$23*SUM(B74:D74)+$E$23*E74)/SUM(B74:E74),$E$23)),IF(ABS(SUM(B74:C74))>ABS(SUM(D74:E74)),СРВЗВЕШ($B$23:$C$23,B74:C74),IF(D74=0,$E$23,IF(OR(SUM(B74:D74)>0,ABS(SUM(B74:C74))<ABS(SUM(D74:E74))),($D$23*SUM(B74:D74)+$E$23*E74)/SUM(B74:E74)))),IF(ABS(SUM(B74:D74))>ABS(E74),СРВЗВЕШ($B$23:$D$23,B74:D74),$E$23),IF(ABS(SUM(B74:D74))>ABS(E74),($B$23*SUM(B74:C74)+$D$23*D74)/SUM(B74:D74),$E$23),IF(ABS(B74)>ABS(SUM(C74:D74)),($B$23*SUM(B74:D74)+$E$23*E74)/SUM(B74:E74),$D$23),IF(ABS(B74)>ABS(SUM(C74:D74)),($B$23*B74+$C$23*C74+$E$23*E74)/SUM(B74,C74,E74),$D$23)))) -> 85 | K74: TRUE | L74: =IF(SUM(B74:D74)=0,E23) -> 85 | M74: нужно учесть, что бы 4е число было не равно нулю | N74: 1
B75: 3 | C75: 2 | D75: -6 | E75: 1 | H75: =IF(SUM(B75:E75)=0,"вне рынка") -> вне рынка | I75: 7 | J75: =IF(SUM(B75:E75)=0,"вне рынка",IF(SUM(B75:D75)=0,$E$23,CHOOSE(I75,СРВЗВЕШ($B$23:$E$23,B75:E75),IF(ABS(B75)>ABS(SUM(C75:E75)),$B$23,IF(ABS(B75)<ABS(SUM(C75:D75)),($D$23*SUM(B75:D75)+$E$23*E75)/SUM(B75:E75),$E$23)),IF(ABS(SUM(B75:C75))>ABS(SUM(D75:E75)),СРВЗВЕШ($B$23:$C$23,B75:C75),IF(D75=0,$E$23,IF(OR(SUM(B75:D75)>0,ABS(SUM(B75:C75))<ABS(SUM(D75:E75))),($D$23*SUM(B75:D75)+$E$23*E75)/SUM(B75:E75)))),IF(ABS(SUM(B75:D75))>ABS(E75),СРВЗВЕШ($B$23:$D$23,B75:D75),$E$23),IF(ABS(SUM(B75:D75))>ABS(E75),($B$23*SUM(B75:C75)+$D$23*D75)/SUM(B75:D75),$E$23),IF(ABS(B75)>ABS(SUM(C75:D75)),($B$23*SUM(B75:D75)+$E$23*E75)/SUM(B75:E75),$D$23),IF(ABS(B75)>ABS(SUM(C75:D75)),($B$23*B75+$C$23*C75+$E$23*E75)/SUM(B75,C75,E75),$D$23)))) -> вне рынка | K75: TRUE | L75: =IF(SUM(B75:E75)=0,"вне рынка") -> вне рынка | N75: твоя формула
B76: 3 | C76: 2 | D76: -7 | E76: 1 | H76: =(B23*B76*0+C23*C76*0+D23*(B76+C76+D76+E76)+E23*E76*0)/(B76+C76+D76+E76) -> 84 | I76: 7 | J76: =IF(SUM(B76:E76)=0,"вне рынка",IF(SUM(B76:D76)=0,$E$23,CHOOSE(I76,СРВЗВЕШ($B$23:$E$23,B76:E76),IF(ABS(B76)>ABS(SUM(C76:E76)),$B$23,IF(ABS(B76)<ABS(SUM(C76:D76)),($D$23*SUM(B76:D76)+$E$23*E76)/SUM(B76:E76),$E$23)),IF(ABS(SUM(B76:C76))>ABS(SUM(D76:E76)),СРВЗВЕШ($B$23:$C$23,B76:C76),IF(D76=0,$E$23,IF(OR(SUM(B76:D76)>0,ABS(SUM(B76:C76))<ABS(SUM(D76:E76))),($D$23*SUM(B76:D76)+$E$23*E76)/SUM(B76:E76)))),IF(ABS(SUM(B76:D76))>ABS(E76),СРВЗВЕШ($B$23:$D$23,B76:D76),$E$23),IF(ABS(SUM(B76:D76))>ABS(E76),($B$23*SUM(B76:C76)+$D$23*D76)/SUM(B76:D76),$E$23),IF(ABS(B76)>ABS(SUM(C76:D76)),($B$23*SUM(B76:D76)+$E$23*E76)/SUM(B76:E76),$D$23),IF(ABS(B76)>ABS(SUM(C76:D76)),($B$23*B76+$C$23*C76+$E$23*E76)/SUM(B76,C76,E76),$D$23)))) -> 84 | K76: TRUE | N76: твоя формула
B77: -3 | C77: 2 | D77: 0 | E77: 1 | H77: =IF(SUM(B77:E77)=0,"вне рынка") -> вне рынка | I77: 2 | J77: =IF(SUM(B77:E77)=0,"вне рынка",IF(SUM(B77:D77)=0,$E$23,CHOOSE(I77,СРВЗВЕШ($B$23:$E$23,B77:E77),IF(ABS(B77)>ABS(SUM(C77:E77)),$B$23,IF(ABS(B77)<ABS(SUM(C77:D77)),($D$23*SUM(B77:D77)+$E$23*E77)/SUM(B77:E77),$E$23)),IF(ABS(SUM(B77:C77))>ABS(SUM(D77:E77)),СРВЗВЕШ($B$23:$C$23,B77:C77),IF(D77=0,$E$23,IF(OR(SUM(B77:D77)>0,ABS(SUM(B77:C77))<ABS(SUM(D77:E77))),($D$23*SUM(B77:D77)+$E$23*E77)/SUM(B77:E77)))),IF(ABS(SUM(B77:D77))>ABS(E77),СРВЗВЕШ($B$23:$D$23,B77:D77),$E$23),IF(ABS(SUM(B77:D77))>ABS(E77),($B$23*SUM(B77:C77)+$D$23*D77)/SUM(B77:D77),$E$23),IF(ABS(B77)>ABS(SUM(C77:D77)),($B$23*SUM(B77:D77)+$E$23*E77)/SUM(B77:E77),$D$23),IF(ABS(B77)>ABS(SUM(C77:D77)),($B$23*B77+$C$23*C77+$E$23*E77)/SUM(B77,C77,E77),$D$23)))) -> вне рынка | K77: TRUE | L77: =IF(SUM(B77:E77)=0,"вне рынка") -> вне рынка | N77: твоя формула
B78: -3 | C78: 2 | D78: 0 | E78: 2 | H78: =(B23*B78*0+C23*C78*0+D23*D78*0+E23*E78)/(B78*0+C78*0+D78*0+E78) -> 85 | I78: 2 | J78: =IF(SUM(B78:E78)=0,"вне рынка",IF(SUM(B78:D78)=0,$E$23,CHOOSE(I78,СРВЗВЕШ($B$23:$E$23,B78:E78),IF(ABS(B78)>ABS(SUM(C78:E78)),$B$23,IF(ABS(B78)<ABS(SUM(C78:D78)),($D$23*SUM(B78:D78)+$E$23*E78)/SUM(B78:E78),$E$23)),IF(ABS(SUM(B78:C78))>ABS(SUM(D78:E78)),СРВЗВЕШ($B$23:$C$23,B78:C78),IF(D78=0,$E$23,IF(OR(SUM(B78:D78)>0,ABS(SUM(B78:C78))<ABS(SUM(D78:E78))),($D$23*SUM(B78:D78)+$E$23*E78)/SUM(B78:E78)))),IF(ABS(SUM(B78:D78))>ABS(E78),СРВЗВЕШ($B$23:$D$23,B78:D78),$E$23),IF(ABS(SUM(B78:D78))>ABS(E78),($B$23*SUM(B78:C78)+$D$23*D78)/SUM(B78:D78),$E$23),IF(ABS(B78)>ABS(SUM(C78:D78)),($B$23*SUM(B78:D78)+$E$23*E78)/SUM(B78:E78),$D$23),IF(ABS(B78)>ABS(SUM(C78:D78)),($B$23*B78+$C$23*C78+$E$23*E78)/SUM(B78,C78,E78),$D$23)))) -> 85 | K78: TRUE | N78: твоя формула
B79: -4 | C79: 2 | D79: 0 | E79: 1 | H79: =(B23*(B79+C79+D79+E79)+C23*C79*0+D23*D79*0+E23*E79*0)/(B79+C79+D79+E79) -> 82 | I79: 2 | J79: =IF(SUM(B79:E79)=0,"вне рынка",IF(SUM(B79:D79)=0,$E$23,CHOOSE(I79,СРВЗВЕШ($B$23:$E$23,B79:E79),IF(ABS(B79)>ABS(SUM(C79:E79)),$B$23,IF(ABS(B79)<ABS(SUM(C79:D79)),($D$23*SUM(B79:D79)+$E$23*E79)/SUM(B79:E79),$E$23)),IF(ABS(SUM(B79:C79))>ABS(SUM(D79:E79)),СРВЗВЕШ($B$23:$C$23,B79:C79),IF(D79=0,$E$23,IF(OR(SUM(B79:D79)>0,ABS(SUM(B79:C79))<ABS(SUM(D79:E79))),($D$23*SUM(B79:D79)+$E$23*E79)/SUM(B79:E79)))),IF(ABS(SUM(B79:D79))>ABS(E79),СРВЗВЕШ($B$23:$D$23,B79:D79),$E$23),IF(ABS(SUM(B79:D79))>ABS(E79),($B$23*SUM(B79:C79)+$D$23*D79)/SUM(B79:D79),$E$23),IF(ABS(B79)>ABS(SUM(C79:D79)),($B$23*SUM(B79:D79)+$E$23*E79)/SUM(B79:E79),$D$23),IF(ABS(B79)>ABS(SUM(C79:D79)),($B$23*B79+$C$23*C79+$E$23*E79)/SUM(B79,C79,E79),$D$23)))) -> 82 | K79: TRUE | N79: твоя формула
B80: -3 | C80: 2 | D80: 1 | E80: 0 | H80: =IF(SUM(B80:E80)=0,"вне рынка") -> вне рынка | I80: 2 | J80: =IF(SUM(B80:E80)=0,"вне рынка",IF(SUM(B80:D80)=0,$E$23,CHOOSE(I80,СРВЗВЕШ($B$23:$E$23,B80:E80),IF(ABS(B80)>ABS(SUM(C80:E80)),$B$23,IF(ABS(B80)<ABS(SUM(C80:D80)),($D$23*SUM(B80:D80)+$E$23*E80)/SUM(B80:E80),$E$23)),IF(ABS(SUM(B80:C80))>ABS(SUM(D80:E80)),СРВЗВЕШ($B$23:$C$23,B80:C80),IF(D80=0,$E$23,IF(OR(SUM(B80:D80)>0,ABS(SUM(B80:C80))<ABS(SUM(D80:E80))),($D$23*SUM(B80:D80)+$E$23*E80)/SUM(B80:E80)))),IF(ABS(SUM(B80:D80))>ABS(E80),СРВЗВЕШ($B$23:$D$23,B80:D80),$E$23),IF(ABS(SUM(B80:D80))>ABS(E80),($B$23*SUM(B80:C80)+$D$23*D80)/SUM(B80:D80),$E$23),IF(ABS(B80)>ABS(SUM(C80:D80)),($B$23*SUM(B80:D80)+$E$23*E80)/SUM(B80:E80),$D$23),IF(ABS(B80)>ABS(SUM(C80:D80)),($B$23*B80+$C$23*C80+$E$23*E80)/SUM(B80,C80,E80),$D$23)))) -> вне рынка | K80: TRUE | L80: =IF(SUM(B80:E80)=0,"вне рынка") -> вне рынка | N80: твоя формула
B81: -3 | C81: 2 | D81: 2 | E81: 0 | H81: =(B23*B81*0+C23*C81*0+D23*(B81+C81+D81)+E23*E81)/(B81+C81+D81+E81) -> 84 | I81: 2 | J81: =IF(SUM(B81:E81)=0,"вне рынка",IF(SUM(B81:D81)=0,$E$23,CHOOSE(I81,СРВЗВЕШ($B$23:$E$23,B81:E81),IF(ABS(B81)>ABS(SUM(C81:E81)),$B$23,IF(ABS(B81)<ABS(SUM(C81:D81)),($D$23*SUM(B81:D81)+$E$23*E81)/SUM(B81:E81),$E$23)),IF(ABS(SUM(B81:C81))>ABS(SUM(D81:E81)),СРВЗВЕШ($B$23:$C$23,B81:C81),IF(D81=0,$E$23,IF(OR(SUM(B81:D81)>0,ABS(SUM(B81:C81))<ABS(SUM(D81:E81))),($D$23*SUM(B81:D81)+$E$23*E81)/SUM(B81:E81)))),IF(ABS(SUM(B81:D81))>ABS(E81),СРВЗВЕШ($B$23:$D$23,B81:D81),$E$23),IF(ABS(SUM(B81:D81))>ABS(E81),($B$23*SUM(B81:C81)+$D$23*D81)/SUM(B81:D81),$E$23),IF(ABS(B81)>ABS(SUM(C81:D81)),($B$23*SUM(B81:D81)+$E$23*E81)/SUM(B81:E81),$D$23),IF(ABS(B81)>ABS(SUM(C81:D81)),($B$23*B81+$C$23*C81+$E$23*E81)/SUM(B81,C81,E81),$D$23)))) -> 84 | K81: TRUE | N81: твоя формула
B82: -4 | C82: 2 | D82: 1 | E82: 0 | H82: =(B23*(B82+C82+D82+E82)+C23*C82*0+D23*D82*0+E23*E82*0)/(B82+C82+D82+E82) -> 82 | I82: 2 | J82: =IF(SUM(B82:E82)=0,"вне рынка",IF(SUM(B82:D82)=0,$E$23,CHOOSE(I82,СРВЗВЕШ($B$23:$E$23,B82:E82),IF(ABS(B82)>ABS(SUM(C82:E82)),$B$23,IF(ABS(B82)<ABS(SUM(C82:D82)),($D$23*SUM(B82:D82)+$E$23*E82)/SUM(B82:E82),$E$23)),IF(ABS(SUM(B82:C82))>ABS(SUM(D82:E82)),СРВЗВЕШ($B$23:$C$23,B82:C82),IF(D82=0,$E$23,IF(OR(SUM(B82:D82)>0,ABS(SUM(B82:C82))<ABS(SUM(D82:E82))),($D$23*SUM(B82:D82)+$E$23*E82)/SUM(B82:E82)))),IF(ABS(SUM(B82:D82))>ABS(E82),СРВЗВЕШ($B$23:$D$23,B82:D82),$E$23),IF(ABS(SUM(B82:D82))>ABS(E82),($B$23*SUM(B82:C82)+$D$23*D82)/SUM(B82:D82),$E$23),IF(ABS(B82)>ABS(SUM(C82:D82)),($B$23*SUM(B82:D82)+$E$23*E82)/SUM(B82:E82),$D$23),IF(ABS(B82)>ABS(SUM(C82:D82)),($B$23*B82+$C$23*C82+$E$23*E82)/SUM(B82,C82,E82),$D$23)))) -> 82 | K82: TRUE | N82: твоя формула
B83: -3 | C83: 2 | D83: 0 | E83: 0 | H83: =(B23*(B83+C83)+C23*C83*0)/(B83+C83) -> 82 | I83: 2 | J83: =IF(SUM(B83:E83)=0,"вне рынка",IF(SUM(B83:D83)=0,$E$23,CHOOSE(I83,СРВЗВЕШ($B$23:$E$23,B83:E83),IF(ABS(B83)>ABS(SUM(C83:E83)),$B$23,IF(ABS(B83)<ABS(SUM(C83:D83)),($D$23*SUM(B83:D83)+$E$23*E83)/SUM(B83:E83),$E$23)),IF(ABS(SUM(B83:C83))>ABS(SUM(D83:E83)),СРВЗВЕШ($B$23:$C$23,B83:C83),IF(D83=0,$E$23,IF(OR(SUM(B83:D83)>0,ABS(SUM(B83:C83))<ABS(SUM(D83:E83))),($D$23*SUM(B83:D83)+$E$23*E83)/SUM(B83:E83)))),IF(ABS(SUM(B83:D83))>ABS(E83),СРВЗВЕШ($B$23:$D$23,B83:D83),$E$23),IF(ABS(SUM(B83:D83))>ABS(E83),($B$23*SUM(B83:C83)+$D$23*D83)/SUM(B83:D83),$E$23),IF(ABS(B83)>ABS(SUM(C83:D83)),($B$23*SUM(B83:D83)+$E$23*E83)/SUM(B83:E83),$D$23),IF(ABS(B83)>ABS(SUM(C83:D83)),($B$23*B83+$C$23*C83+$E$23*E83)/SUM(B83,C83,E83),$D$23)))) -> 82 | K83: TRUE | N83: твоя формула
B84: -3 | C84: -2 | D84: 0 | E84: 1 | H84: =(B23*B84+C23*C84+D23*D84+E23*E84*0)/(B84+C84+D84+E84*0) -> 82.4 | I84: 3 | J84: =IF(SUM(B84:E84)=0,"вне рынка",IF(SUM(B84:D84)=0,$E$23,CHOOSE(I84,СРВЗВЕШ($B$23:$E$23,B84:E84),IF(ABS(B84)>ABS(SUM(C84:E84)),$B$23,IF(ABS(B84)<ABS(SUM(C84:D84)),($D$23*SUM(B84:D84)+$E$23*E84)/SUM(B84:E84),$E$23)),IF(ABS(SUM(B84:C84))>ABS(SUM(D84:E84)),СРВЗВЕШ($B$23:$C$23,B84:C84),IF(D84=0,$E$23,IF(OR(SUM(B84:D84)>0,ABS(SUM(B84:C84))<ABS(SUM(D84:E84))),($D$23*SUM(B84:D84)+$E$23*E84)/SUM(B84:E84)))),IF(ABS(SUM(B84:D84))>ABS(E84),СРВЗВЕШ($B$23:$D$23,B84:D84),$E$23),IF(ABS(SUM(B84:D84))>ABS(E84),($B$23*SUM(B84:C84)+$D$23*D84)/SUM(B84:D84),$E$23),IF(ABS(B84)>ABS(SUM(C84:D84)),($B$23*SUM(B84:D84)+$E$23*E84)/SUM(B84:E84),$D$23),IF(ABS(B84)>ABS(SUM(C84:D84)),($B$23*B84+$C$23*C84+$E$23*E84)/SUM(B84,C84,E84),$D$23)))) -> 82.40000153 | K84: TRUE | N84: твоя формула
B85: -3 | C85: -2 | D85: 0 | E85: 5 | H85: =IF(SUM(B85:E85)=0,"вне рынка") -> вне рынка | I85: 3 | J85: =IF(SUM(B85:E85)=0,"вне рынка",IF(SUM(B85:D85)=0,$E$23,CHOOSE(I85,СРВЗВЕШ($B$23:$E$23,B85:E85),IF(ABS(B85)>ABS(SUM(C85:E85)),$B$23,IF(ABS(B85)<ABS(SUM(C85:D85)),($D$23*SUM(B85:D85)+$E$23*E85)/SUM(B85:E85),$E$23)),IF(ABS(SUM(B85:C85))>ABS(SUM(D85:E85)),СРВЗВЕШ($B$23:$C$23,B85:C85),IF(D85=0,$E$23,IF(OR(SUM(B85:D85)>0,ABS(SUM(B85:C85))<ABS(SUM(D85:E85))),($D$23*SUM(B85:D85)+$E$23*E85)/SUM(B85:E85)))),IF(ABS(SUM(B85:D85))>ABS(E85),СРВЗВЕШ($B$23:$D$23,B85:D85),$E$23),IF(ABS(SUM(B85:D85))>ABS(E85),($B$23*SUM(B85:C85)+$D$23*D85)/SUM(B85:D85),$E$23),IF(ABS(B85)>ABS(SUM(C85:D85)),($B$23*SUM(B85:D85)+$E$23*E85)/SUM(B85:E85),$D$23),IF(ABS(B85)>ABS(SUM(C85:D85)),($B$23*B85+$C$23*C85+$E$23*E85)/SUM(B85,C85,E85),$D$23)))) -> вне рынка | K85: TRUE | L85: =IF(SUM(B85:E85)=0,"вне рынка") -> вне рынка | N85: твоя формула
B86: -3 | C86: -2 | D86: 0 | E86: 6 | H86: =(B23*B86*0+C23*C86*0+D23*D86+E23*E86)/(B86*0+C86*0+D86+E86) -> 85 | I86: 3 | J86: =IF(SUM(B86:E86)=0,"вне рынка",IF(SUM(B86:D86)=0,$E$23,CHOOSE(I86,СРВЗВЕШ($B$23:$E$23,B86:E86),IF(ABS(B86)>ABS(SUM(C86:E86)),$B$23,IF(ABS(B86)<ABS(SUM(C86:D86)),($D$23*SUM(B86:D86)+$E$23*E86)/SUM(B86:E86),$E$23)),IF(ABS(SUM(B86:C86))>ABS(SUM(D86:E86)),СРВЗВЕШ($B$23:$C$23,B86:C86),IF(D86=0,$E$23,IF(OR(SUM(B86:D86)>0,ABS(SUM(B86:C86))<ABS(SUM(D86:E86))),($D$23*SUM(B86:D86)+$E$23*E86)/SUM(B86:E86)))),IF(ABS(SUM(B86:D86))>ABS(E86),СРВЗВЕШ($B$23:$D$23,B86:D86),$E$23),IF(ABS(SUM(B86:D86))>ABS(E86),($B$23*SUM(B86:C86)+$D$23*D86)/SUM(B86:D86),$E$23),IF(ABS(B86)>ABS(SUM(C86:D86)),($B$23*SUM(B86:D86)+$E$23*E86)/SUM(B86:E86),$D$23),IF(ABS(B86)>ABS(SUM(C86:D86)),($B$23*B86+$C$23*C86+$E$23*E86)/SUM(B86,C86,E86),$D$23)))) -> 85 | K86: TRUE | N86: твоя формула
B87: -3 | C87: 2 | D87: 0 | E87: -1 | H87: =(B23*(B87+C87)+C23*C87*0+D23*D87+E23*E87)/(B87+C87+D87+E87) -> 83.5 | I87: 6 | J87: =IF(SUM(B87:E87)=0,"вне рынка",IF(SUM(B87:D87)=0,$E$23,CHOOSE(I87,СРВЗВЕШ($B$23:$E$23,B87:E87),IF(ABS(B87)>ABS(SUM(C87:E87)),$B$23,IF(ABS(B87)<ABS(SUM(C87:D87)),($D$23*SUM(B87:D87)+$E$23*E87)/SUM(B87:E87),$E$23)),IF(ABS(SUM(B87:C87))>ABS(SUM(D87:E87)),СРВЗВЕШ($B$23:$C$23,B87:C87),IF(D87=0,$E$23,IF(OR(SUM(B87:D87)>0,ABS(SUM(B87:C87))<ABS(SUM(D87:E87))),($D$23*SUM(B87:D87)+$E$23*E87)/SUM(B87:E87)))),IF(ABS(SUM(B87:D87))>ABS(E87),СРВЗВЕШ($B$23:$D$23,B87:D87),$E$23),IF(ABS(SUM(B87:D87))>ABS(E87),($B$23*SUM(B87:C87)+$D$23*D87)/SUM(B87:D87),$E$23),IF(ABS(B87)>ABS(SUM(C87:D87)),($B$23*SUM(B87:D87)+$E$23*E87)/SUM(B87:E87),$D$23),IF(ABS(B87)>ABS(SUM(C87:D87)),($B$23*B87+$C$23*C87+$E$23*E87)/SUM(B87,C87,E87),$D$23)))) -> 83.5 | K87: TRUE | N87: твоя формула
B88: -3 | C88: -2 | D88: 1 | E88: 0 | H88: =(B23*B88+C23*C88+D23*D88*0+E23*E88)/(B88+C88+D88*0+E88) -> 82.4 | I88: 3 | J88: =IF(SUM(B88:E88)=0,"вне рынка",IF(SUM(B88:D88)=0,$E$23,CHOOSE(I88,СРВЗВЕШ($B$23:$E$23,B88:E88),IF(ABS(B88)>ABS(SUM(C88:E88)),$B$23,IF(ABS(B88)<ABS(SUM(C88:D88)),($D$23*SUM(B88:D88)+$E$23*E88)/SUM(B88:E88),$E$23)),IF(ABS(SUM(B88:C88))>ABS(SUM(D88:E88)),СРВЗВЕШ($B$23:$C$23,B88:C88),IF(D88=0,$E$23,IF(OR(SUM(B88:D88)>0,ABS(SUM(B88:C88))<ABS(SUM(D88:E88))),($D$23*SUM(B88:D88)+$E$23*E88)/SUM(B88:E88)))),IF(ABS(SUM(B88:D88))>ABS(E88),СРВЗВЕШ($B$23:$D$23,B88:D88),$E$23),IF(ABS(SUM(B88:D88))>ABS(E88),($B$23*SUM(B88:C88)+$D$23*D88)/SUM(B88:D88),$E$23),IF(ABS(B88)>ABS(SUM(C88:D88)),($B$23*SUM(B88:D88)+$E$23*E88)/SUM(B88:E88),$D$23),IF(ABS(B88)>ABS(SUM(C88:D88)),($B$23*B88+$C$23*C88+$E$23*E88)/SUM(B88,C88,E88),$D$23)))) -> 82.40000153 | K88: TRUE | N88: твоя формула
B89: -3 | C89: -2 | D89: 5 | E89: 0 | H89: =IF(SUM(B89:E89)=0,"вне рынка") -> вне рынка | I89: =IF(ОДИНАКЗНАК(B89:E89),1,IF(ОДИНАКЗНАК(C89:E89),2,IF(AND(ОДИНАКЗНАК(B89:C89),ОДИНАКЗНАК(D89:E89)),3,IF(ОДИНАКЗНАК(B89:D89),4,IF(AND(NOT(ОДИНАКЗНАК(B89:C89)),NOT(ОДИНАКЗНАК(C89:D89))),5,IF(AND(NOT(ОДИНАКЗНАК(B89:C89)),ОДИНАКЗНАК(C89:D89)),6,7)))))) -> 3 | J89: =IF(SUM(B89:E89)=0,"вне рынка",IF(SUM(B89:D89)=0,$E$23,CHOOSE(I89,СРВЗВЕШ($B$23:$E$23,B89:E89),IF(ABS(B89)>ABS(SUM(C89:E89)),$B$23,IF(ABS(B89)<ABS(SUM(C89:D89)),($D$23*SUM(B89:D89)+$E$23*E89)/SUM(B89:E89),$E$23)),IF(ABS(SUM(B89:C89))>ABS(SUM(D89:E89)),СРВЗВЕШ($B$23:$C$23,B89:C89),IF(D89=0,$E$23,IF(OR(SUM(B89:D89)>0,ABS(SUM(B89:C89))<ABS(SUM(D89:E89))),($D$23*SUM(B89:D89)+$E$23*E89)/SUM(B89:E89)))),IF(ABS(SUM(B89:D89))>ABS(E89),СРВЗВЕШ($B$23:$D$23,B89:D89),$E$23),IF(ABS(SUM(B89:D89))>ABS(E89),($B$23*SUM(B89:C89)+$D$23*D89)/SUM(B89:D89),$E$23),IF(ABS(B89)>ABS(SUM(C89:D89)),($B$23*SUM(B89:D89)+$E$23*E89)/SUM(B89:E89),$D$23),IF(ABS(B89)>ABS(SUM(C89:D89)),($B$23*B89+$C$23*C89+$E$23*E89)/SUM(B89,C89,E89),$D$23)))) -> вне рынка | K89: TRUE | L89: =IF(SUM(B89:E89)=0,"вне рынка") -> вне рынка | N89: твоя формула
B90: -3 | C90: -2 | D90: 6 | E90: 0 | H90: =(B23*B90*0+C23*C90*0+D23*(B90+C90+D90)+E23*E90)/(B90+C90+D90+E90) -> 84 | I90: 3 | J90: =IF(SUM(B90:E90)=0,"вне рынка",IF(SUM(B90:D90)=0,$E$23,CHOOSE(I90,СРВЗВЕШ($B$23:$E$23,B90:E90),IF(ABS(B90)>ABS(SUM(C90:E90)),$B$23,IF(ABS(B90)<ABS(SUM(C90:D90)),($D$23*SUM(B90:D90)+$E$23*E90)/SUM(B90:E90),$E$23)),IF(ABS(SUM(B90:C90))>ABS(SUM(D90:E90)),СРВЗВЕШ($B$23:$C$23,B90:C90),IF(D90=0,$E$23,IF(OR(SUM(B90:D90)>0,ABS(SUM(B90:C90))<ABS(SUM(D90:E90))),($D$23*SUM(B90:D90)+$E$23*E90)/SUM(B90:E90)))),IF(ABS(SUM(B90:D90))>ABS(E90),СРВЗВЕШ($B$23:$D$23,B90:D90),$E$23),IF(ABS(SUM(B90:D90))>ABS(E90),($B$23*SUM(B90:C90)+$D$23*D90)/SUM(B90:D90),$E$23),IF(ABS(B90)>ABS(SUM(C90:D90)),($B$23*SUM(B90:D90)+$E$23*E90)/SUM(B90:E90),$D$23),IF(ABS(B90)>ABS(SUM(C90:D90)),($B$23*B90+$C$23*C90+$E$23*E90)/SUM(B90,C90,E90),$D$23)))) -> 84 | K90: =IF(ISTEXT(J90),H90=J90,ROUND(H90,2)=ROUND(J90,2)) -> TRUE | N90: твоя формула
B91: 3 | C91: -1 | D91: 0 | E91: -1 | H91: =(B23*(B91+C91+D91+E91)+C23*C91*0+D23*D91*0+E23*E91*0)/(B91+C91+D91+E91) -> 82 | I91: 2 | J91: =IF(SUM(B91:E91)=0,"вне рынка",IF(SUM(B91:D91)=0,$E$23,CHOOSE(I91,СРВЗВЕШ($B$23:$E$23,B91:E91),IF(ABS(B91)>ABS(SUM(C91:E91)),$B$23,IF(ABS(B91)<ABS(SUM(C91:D91)),($D$23*SUM(B91:D91)+$E$23*E91)/SUM(B91:E91),$E$23)),IF(ABS(SUM(B91:C91))>ABS(SUM(D91:E91)),СРВЗВЕШ($B$23:$C$23,B91:C91),IF(D91=0,$E$23,IF(OR(SUM(B91:D91)>0,ABS(SUM(B91:C91))<ABS(SUM(D91:E91))),($D$23*SUM(B91:D91)+$E$23*E91)/SUM(B91:E91)))),IF(ABS(SUM(B91:D91))>ABS(E91),СРВЗВЕШ($B$23:$D$23,B91:D91),$E$23),IF(ABS(SUM(B91:D91))>ABS(E91),($B$23*SUM(B91:C91)+$D$23*D91)/SUM(B91:D91),$E$23),IF(ABS(B91)>ABS(SUM(C91:D91)),($B$23*SUM(B91:D91)+$E$23*E91)/SUM(B91:E91),$D$23),IF(ABS(B91)>ABS(SUM(C91:D91)),($B$23*B91+$C$23*C91+$E$23*E91)/SUM(B91,C91,E91),$D$23)))) -> 82 | K91: TRUE | N91: твоя формула
B92: 3 | C92: -2 | D92: 0 | E92: -1 | H92: =IF(SUM(B92:E92)=0,"вне рынка") -> вне рынка | I92: 2 | J92: =IF(SUM(B92:E92)=0,"вне рынка",IF(SUM(B92:D92)=0,$E$23,CHOOSE(I92,СРВЗВЕШ($B$23:$E$23,B92:E92),IF(ABS(B92)>ABS(SUM(C92:E92)),$B$23,IF(ABS(B92)<ABS(SUM(C92:D92)),($D$23*SUM(B92:D92)+$E$23*E92)/SUM(B92:E92),$E$23)),IF(ABS(SUM(B92:C92))>ABS(SUM(D92:E92)),СРВЗВЕШ($B$23:$C$23,B92:C92),IF(D92=0,$E$23,IF(OR(SUM(B92:D92)>0,ABS(SUM(B92:C92))<ABS(SUM(D92:E92))),($D$23*SUM(B92:D92)+$E$23*E92)/SUM(B92:E92)))),IF(ABS(SUM(B92:D92))>ABS(E92),СРВЗВЕШ($B$23:$D$23,B92:D92),$E$23),IF(ABS(SUM(B92:D92))>ABS(E92),($B$23*SUM(B92:C92)+$D$23*D92)/SUM(B92:D92),$E$23),IF(ABS(B92)>ABS(SUM(C92:D92)),($B$23*SUM(B92:D92)+$E$23*E92)/SUM(B92:E92),$D$23),IF(ABS(B92)>ABS(SUM(C92:D92)),($B$23*B92+$C$23*C92+$E$23*E92)/SUM(B92,C92,E92),$D$23)))) -> вне рынка | K92: TRUE | L92: =IF(SUM(B92:E92)=0,"вне рынка") -> вне рынка | N92: твоя формула
B93: 3 | C93: -2 | D93: 0 | E93: -2 | H93: =(B23*B93*0+C23*C93*0+D23*D93+E23*E93)/(B93*0+C93*0+D93+E93) -> 85 | I93: 2 | J93: =IF(SUM(B93:E93)=0,"вне рынка",IF(SUM(B93:D93)=0,$E$23,CHOOSE(I93,СРВЗВЕШ($B$23:$E$23,B93:E93),IF(ABS(B93)>ABS(SUM(C93:E93)),$B$23,IF(ABS(B93)<ABS(SUM(C93:D93)),($D$23*SUM(B93:D93)+$E$23*E93)/SUM(B93:E93),$E$23)),IF(ABS(SUM(B93:C93))>ABS(SUM(D93:E93)),СРВЗВЕШ($B$23:$C$23,B93:C93),IF(D93=0,$E$23,IF(OR(SUM(B93:D93)>0,ABS(SUM(B93:C93))<ABS(SUM(D93:E93))),($D$23*SUM(B93:D93)+$E$23*E93)/SUM(B93:E93)))),IF(ABS(SUM(B93:D93))>ABS(E93),СРВЗВЕШ($B$23:$D$23,B93:D93),$E$23),IF(ABS(SUM(B93:D93))>ABS(E93),($B$23*SUM(B93:C93)+$D$23*D93)/SUM(B93:D93),$E$23),IF(ABS(B93)>ABS(SUM(C93:D93)),($B$23*SUM(B93:D93)+$E$23*E93)/SUM(B93:E93),$D$23),IF(ABS(B93)>ABS(SUM(C93:D93)),($B$23*B93+$C$23*C93+$E$23*E93)/SUM(B93,C93,E93),$D$23)))) -> 85 | K93: TRUE | N93: твоя формула
B94: 3 | C94: -2 | D94: -1 | E94: 0 | H94: =IF(SUM(B94:E94)=0,"вне рынка") -> вне рынка | I94: 2 | J94: =IF(SUM(B94:E94)=0,"вне рынка",IF(SUM(B94:D94)=0,$E$23,CHOOSE(I94,СРВЗВЕШ($B$23:$E$23,B94:E94),IF(ABS(B94)>ABS(SUM(C94:E94)),$B$23,IF(ABS(B94)<ABS(SUM(C94:D94)),($D$23*SUM(B94:D94)+$E$23*E94)/SUM(B94:E94),$E$23)),IF(ABS(SUM(B94:C94))>ABS(SUM(D94:E94)),СРВЗВЕШ($B$23:$C$23,B94:C94),IF(D94=0,$E$23,IF(OR(SUM(B94:D94)>0,ABS(SUM(B94:C94))<ABS(SUM(D94:E94))),($D$23*SUM(B94:D94)+$E$23*E94)/SUM(B94:E94)))),IF(ABS(SUM(B94:D94))>ABS(E94),СРВЗВЕШ($B$23:$D$23,B94:D94),$E$23),IF(ABS(SUM(B94:D94))>ABS(E94),($B$23*SUM(B94:C94)+$D$23*D94)/SUM(B94:D94),$E$23),IF(ABS(B94)>ABS(SUM(C94:D94)),($B$23*SUM(B94:D94)+$E$23*E94)/SUM(B94:E94),$D$23),IF(ABS(B94)>ABS(SUM(C94:D94)),($B$23*B94+$C$23*C94+$E$23*E94)/SUM(B94,C94,E94),$D$23)))) -> вне рынка | K94: TRUE | L94: =IF(SUM(B94:E94)=0,"вне рынка") -> вне рынка | N94: твоя формула
B95: 3 | C95: -2 | D95: -2 | E95: 0 | H95: =(B23*B95*0+C23*C95*0+D23*(B95+C95+D95)+E23*E95)/(B95+C95+D95+E95) -> 84 | I95: 2 | J95: =IF(SUM(B95:E95)=0,"вне рынка",IF(SUM(B95:D95)=0,$E$23,CHOOSE(I95,СРВЗВЕШ($B$23:$E$23,B95:E95),IF(ABS(B95)>ABS(SUM(C95:E95)),$B$23,IF(ABS(B95)<ABS(SUM(C95:D95)),($D$23*SUM(B95:D95)+$E$23*E95)/SUM(B95:E95),$E$23)),IF(ABS(SUM(B95:C95))>ABS(SUM(D95:E95)),СРВЗВЕШ($B$23:$C$23,B95:C95),IF(D95=0,$E$23,IF(OR(SUM(B95:D95)>0,ABS(SUM(B95:C95))<ABS(SUM(D95:E95))),($D$23*SUM(B95:D95)+$E$23*E95)/SUM(B95:E95)))),IF(ABS(SUM(B95:D95))>ABS(E95),СРВЗВЕШ($B$23:$D$23,B95:D95),$E$23),IF(ABS(SUM(B95:D95))>ABS(E95),($B$23*SUM(B95:C95)+$D$23*D95)/SUM(B95:D95),$E$23),IF(ABS(B95)>ABS(SUM(C95:D95)),($B$23*SUM(B95:D95)+$E$23*E95)/SUM(B95:E95),$D$23),IF(ABS(B95)>ABS(SUM(C95:D95)),($B$23*B95+$C$23*C95+$E$23*E95)/SUM(B95,C95,E95),$D$23)))) -> 84 | K95: TRUE | N95: твоя формула
B96: 4 | C96: -2 | D96: -1 | E96: 0 | H96: =(B23*(B96+C96+D96+E96)+C23*C96*0+D23*D96*0+E23*E96)/(B96+C96+D96+E96) -> 82 | I96: 2 | J96: =IF(SUM(B96:E96)=0,"вне рынка",IF(SUM(B96:D96)=0,$E$23,CHOOSE(I96,СРВЗВЕШ($B$23:$E$23,B96:E96),IF(ABS(B96)>ABS(SUM(C96:E96)),$B$23,IF(ABS(B96)<ABS(SUM(C96:D96)),($D$23*SUM(B96:D96)+$E$23*E96)/SUM(B96:E96),$E$23)),IF(ABS(SUM(B96:C96))>ABS(SUM(D96:E96)),СРВЗВЕШ($B$23:$C$23,B96:C96),IF(D96=0,$E$23,IF(OR(SUM(B96:D96)>0,ABS(SUM(B96:C96))<ABS(SUM(D96:E96))),($D$23*SUM(B96:D96)+$E$23*E96)/SUM(B96:E96)))),IF(ABS(SUM(B96:D96))>ABS(E96),СРВЗВЕШ($B$23:$D$23,B96:D96),$E$23),IF(ABS(SUM(B96:D96))>ABS(E96),($B$23*SUM(B96:C96)+$D$23*D96)/SUM(B96:D96),$E$23),IF(ABS(B96)>ABS(SUM(C96:D96)),($B$23*SUM(B96:D96)+$E$23*E96)/SUM(B96:E96),$D$23),IF(ABS(B96)>ABS(SUM(C96:D96)),($B$23*B96+$C$23*C96+$E$23*E96)/SUM(B96,C96,E96),$D$23)))) -> 82 | K96: TRUE | N96: твоя формула
B97: 3 | C97: -2 | D97: 0 | E97: 0 | H97: =(B23*(B97+C97)+C23*C97*0)/(B97+C97) -> 82 | I97: 2 | J97: =IF(SUM(B97:E97)=0,"вне рынка",IF(SUM(B97:D97)=0,$E$23,CHOOSE(I97,СРВЗВЕШ($B$23:$E$23,B97:E97),IF(ABS(B97)>ABS(SUM(C97:E97)),$B$23,IF(ABS(B97)<ABS(SUM(C97:D97)),($D$23*SUM(B97:D97)+$E$23*E97)/SUM(B97:E97),$E$23)),IF(ABS(SUM(B97:C97))>ABS(SUM(D97:E97)),СРВЗВЕШ($B$23:$C$23,B97:C97),IF(D97=0,$E$23,IF(OR(SUM(B97:D97)>0,ABS(SUM(B97:C97))<ABS(SUM(D97:E97))),($D$23*SUM(B97:D97)+$E$23*E97)/SUM(B97:E97)))),IF(ABS(SUM(B97:D97))>ABS(E97),СРВЗВЕШ($B$23:$D$23,B97:D97),$E$23),IF(ABS(SUM(B97:D97))>ABS(E97),($B$23*SUM(B97:C97)+$D$23*D97)/SUM(B97:D97),$E$23),IF(ABS(B97)>ABS(SUM(C97:D97)),($B$23*SUM(B97:D97)+$E$23*E97)/SUM(B97:E97),$D$23),IF(ABS(B97)>ABS(SUM(C97:D97)),($B$23*B97+$C$23*C97+$E$23*E97)/SUM(B97,C97,E97),$D$23)))) -> 82 | K97: TRUE | N97: твоя формула
B98: 3 | C98: 2 | D98: 0 | E98: -1 | H98: =(B23*B98+C23*C98+D23*D98+E23*E98*0)/(B98+C98+D98+E98*0) -> 82.4 | I98: 3 | J98: =IF(SUM(B98:E98)=0,"вне рынка",IF(SUM(B98:D98)=0,$E$23,CHOOSE(I98,СРВЗВЕШ($B$23:$E$23,B98:E98),IF(ABS(B98)>ABS(SUM(C98:E98)),$B$23,IF(ABS(B98)<ABS(SUM(C98:D98)),($D$23*SUM(B98:D98)+$E$23*E98)/SUM(B98:E98),$E$23)),IF(ABS(SUM(B98:C98))>ABS(SUM(D98:E98)),СРВЗВЕШ($B$23:$C$23,B98:C98),IF(D98=0,$E$23,IF(OR(SUM(B98:D98)>0,ABS(SUM(B98:C98))<ABS(SUM(D98:E98))),($D$23*SUM(B98:D98)+$E$23*E98)/SUM(B98:E98)))),IF(ABS(SUM(B98:D98))>ABS(E98),СРВЗВЕШ($B$23:$D$23,B98:D98),$E$23),IF(ABS(SUM(B98:D98))>ABS(E98),($B$23*SUM(B98:C98)+$D$23*D98)/SUM(B98:D98),$E$23),IF(ABS(B98)>ABS(SUM(C98:D98)),($B$23*SUM(B98:D98)+$E$23*E98)/SUM(B98:E98),$D$23),IF(ABS(B98)>ABS(SUM(C98:D98)),($B$23*B98+$C$23*C98+$E$23*E98)/SUM(B98,C98,E98),$D$23)))) -> 82.40000153 | K98: TRUE | N98: твоя формула
B99: 3 | C99: 2 | D99: 0 | E99: -5 | H99: =IF(SUM(B99:E99)=0,"вне рынка") -> вне рынка | I99: 3 | J99: =IF(SUM(B99:E99)=0,"вне рынка",IF(SUM(B99:D99)=0,$E$23,CHOOSE(I99,СРВЗВЕШ($B$23:$E$23,B99:E99),IF(ABS(B99)>ABS(SUM(C99:E99)),$B$23,IF(ABS(B99)<ABS(SUM(C99:D99)),($D$23*SUM(B99:D99)+$E$23*E99)/SUM(B99:E99),$E$23)),IF(ABS(SUM(B99:C99))>ABS(SUM(D99:E99)),СРВЗВЕШ($B$23:$C$23,B99:C99),IF(D99=0,$E$23,IF(OR(SUM(B99:D99)>0,ABS(SUM(B99:C99))<ABS(SUM(D99:E99))),($D$23*SUM(B99:D99)+$E$23*E99)/SUM(B99:E99)))),IF(ABS(SUM(B99:D99))>ABS(E99),СРВЗВЕШ($B$23:$D$23,B99:D99),$E$23),IF(ABS(SUM(B99:D99))>ABS(E99),($B$23*SUM(B99:C99)+$D$23*D99)/SUM(B99:D99),$E$23),IF(ABS(B99)>ABS(SUM(C99:D99)),($B$23*SUM(B99:D99)+$E$23*E99)/SUM(B99:E99),$D$23),IF(ABS(B99)>ABS(SUM(C99:D99)),($B$23*B99+$C$23*C99+$E$23*E99)/SUM(B99,C99,E99),$D$23)))) -> вне рынка | K99: TRUE | L99: =IF(SUM(B99:E99)=0,"вне рынка") -> вне рынка | N99: твоя формула
B100: 3 | C100: 2 | D100: 0 | E100: -6 | H100: =(B23*B100*0+C23*C100*0+D23*D100+E23*E100)/(B100*0+C100*0+D100+E100) -> 85 | I100: 3 | J100: =IF(SUM(B100:E100)=0,"вне рынка",IF(SUM(B100:D100)=0,$E$23,CHOOSE(I100,СРВЗВЕШ($B$23:$E$23,B100:E100),IF(ABS(B100)>ABS(SUM(C100:E100)),$B$23,IF(ABS(B100)<ABS(SUM(C100:D100)),($D$23*SUM(B100:D100)+$E$23*E100)/SUM(B100:E100),$E$23)),IF(ABS(SUM(B100:C100))>ABS(SUM(D100:E100)),СРВЗВЕШ($B$23:$C$23,B100:C100),IF(D100=0,$E$23,IF(OR(SUM(B100:D100)>0,ABS(SUM(B100:C100))<ABS(SUM(D100:E100))),($D$23*SUM(B100:D100)+$E$23*E100)/SUM(B100:E100)))),IF(ABS(SUM(B100:D100))>ABS(E100),СРВЗВЕШ($B$23:$D$23,B100:D100),$E$23),IF(ABS(SUM(B100:D100))>ABS(E100),($B$23*SUM(B100:C100)+$D$23*D100)/SUM(B100:D100),$E$23),IF(ABS(B100)>ABS(SUM(C100:D100)),($B$23*SUM(B100:D100)+$E$23*E100)/SUM(B100:E100),$D$23),IF(ABS(B100)>ABS(SUM(C100:D100)),($B$23*B100+$C$23*C100+$E$23*E100)/SUM(B100,C100,E100),$D$23)))) -> 85 | K100: TRUE | N100: твоя формула
B101: 3 | C101: -2 | D101: 0 | E101: 1 | H101: =(B23*(B101+C101)+C23*C101*0+D23*D101+E23*E101)/(B101+C101+D101+E101) -> 83.5 | I101: 6 | J101: =IF(SUM(B101:E101)=0,"вне рынка",IF(SUM(B101:D101)=0,$E$23,CHOOSE(I101,СРВЗВЕШ($B$23:$E$23,B101:E101),IF(ABS(B101)>ABS(SUM(C101:E101)),$B$23,IF(ABS(B101)<ABS(SUM(C101:D101)),($D$23*SUM(B101:D101)+$E$23*E101)/SUM(B101:E101),$E$23)),IF(ABS(SUM(B101:C101))>ABS(SUM(D101:E101)),СРВЗВЕШ($B$23:$C$23,B101:C101),IF(D101=0,$E$23,IF(OR(SUM(B101:D101)>0,ABS(SUM(B101:C101))<ABS(SUM(D101:E101))),($D$23*SUM(B101:D101)+$E$23*E101)/SUM(B101:E101)))),IF(ABS(SUM(B101:D101))>ABS(E101),СРВЗВЕШ($B$23:$D$23,B101:D101),$E$23),IF(ABS(SUM(B101:D101))>ABS(E101),($B$23*SUM(B101:C101)+$D$23*D101)/SUM(B101:D101),$E$23),IF(ABS(B101)>ABS(SUM(C101:D101)),($B$23*SUM(B101:D101)+$E$23*E101)/SUM(B101:E101),$D$23),IF(ABS(B101)>ABS(SUM(C101:D101)),($B$23*B101+$C$23*C101+$E$23*E101)/SUM(B101,C101,E101),$D$23)))) -> 83.5 | K101: TRUE | N101: твоя формула
B102: 3 | C102: 2 | D102: -1 | E102: 0 | H102: =(B23*B102+C23*C102+D23*D102*0+E23*E102)/(B102+C102+D102*0+E102) -> 82.4 | I102: 3 | J102: =IF(SUM(B102:E102)=0,"вне рынка",IF(SUM(B102:D102)=0,$E$23,CHOOSE(I102,СРВЗВЕШ($B$23:$E$23,B102:E102),IF(ABS(B102)>ABS(SUM(C102:E102)),$B$23,IF(ABS(B102)<ABS(SUM(C102:D102)),($D$23*SUM(B102:D102)+$E$23*E102)/SUM(B102:E102),$E$23)),IF(ABS(SUM(B102:C102))>ABS(SUM(D102:E102)),СРВЗВЕШ($B$23:$C$23,B102:C102),IF(D102=0,$E$23,IF(OR(SUM(B102:D102)>0,ABS(SUM(B102:C102))<ABS(SUM(D102:E102))),($D$23*SUM(B102:D102)+$E$23*E102)/SUM(B102:E102)))),IF(ABS(SUM(B102:D102))>ABS(E102),СРВЗВЕШ($B$23:$D$23,B102:D102),$E$23),IF(ABS(SUM(B102:D102))>ABS(E102),($B$23*SUM(B102:C102)+$D$23*D102)/SUM(B102:D102),$E$23),IF(ABS(B102)>ABS(SUM(C102:D102)),($B$23*SUM(B102:D102)+$E$23*E102)/SUM(B102:E102),$D$23),IF(ABS(B102)>ABS(SUM(C102:D102)),($B$23*B102+$C$23*C102+$E$23*E102)/SUM(B102,C102,E102),$D$23)))) -> 82.40000153 | K102: TRUE | N102: твоя формула
B103: 3 | C103: 2 | D103: -5 | E103: 0 | H103: =IF(SUM(B103:E103)=0,"вне рынка") -> вне рынка | I103: 3 | J103: =IF(SUM(B103:E103)=0,"вне рынка",IF(SUM(B103:D103)=0,$E$23,CHOOSE(I103,СРВЗВЕШ($B$23:$E$23,B103:E103),IF(ABS(B103)>ABS(SUM(C103:E103)),$B$23,IF(ABS(B103)<ABS(SUM(C103:D103)),($D$23*SUM(B103:D103)+$E$23*E103)/SUM(B103:E103),$E$23)),IF(ABS(SUM(B103:C103))>ABS(SUM(D103:E103)),СРВЗВЕШ($B$23:$C$23,B103:C103),IF(D103=0,$E$23,IF(OR(SUM(B103:D103)>0,ABS(SUM(B103:C103))<ABS(SUM(D103:E103))),($D$23*SUM(B103:D103)+$E$23*E103)/SUM(B103:E103)))),IF(ABS(SUM(B103:D103))>ABS(E103),СРВЗВЕШ($B$23:$D$23,B103:D103),$E$23),IF(ABS(SUM(B103:D103))>ABS(E103),($B$23*SUM(B103:C103)+$D$23*D103)/SUM(B103:D103),$E$23),IF(ABS(B103)>ABS(SUM(C103:D103)),($B$23*SUM(B103:D103)+$E$23*E103)/SUM(B103:E103),$D$23),IF(ABS(B103)>ABS(SUM(C103:D103)),($B$23*B103+$C$23*C103+$E$23*E103)/SUM(B103,C103,E103),$D$23)))) -> вне рынка | K103: TRUE | N103: твоя формула
B104: 3 | C104: 2 | D104: -6 | E104: 0 | H104: =(D23*(B104+C104+D104)+E23*E104)/(B104+C104+D104+E104) -> 84 | I104: 3 | J104: =IF(SUM(B104:E104)=0,"вне рынка",IF(SUM(B104:D104)=0,$E$23,CHOOSE(I104,СРВЗВЕШ($B$23:$E$23,B104:E104),IF(ABS(B104)>ABS(SUM(C104:E104)),$B$23,IF(ABS(B104)<ABS(SUM(C104:D104)),($D$23*SUM(B104:D104)+$E$23*E104)/SUM(B104:E104),$E$23)),IF(ABS(SUM(B104:C104))>ABS(SUM(D104:E104)),СРВЗВЕШ($B$23:$C$23,B104:C104),IF(D104=0,$E$23,IF(OR(SUM(B104:D104)>0,ABS(SUM(B104:C104))<ABS(SUM(D104:E104))),($D$23*SUM(B104:D104)+$E$23*E104)/SUM(B104:E104)))),IF(ABS(SUM(B104:D104))>ABS(E104),СРВЗВЕШ($B$23:$D$23,B104:D104),$E$23),IF(ABS(SUM(B104:D104))>ABS(E104),($B$23*SUM(B104:C104)+$D$23*D104)/SUM(B104:D104),$E$23),IF(ABS(B104)>ABS(SUM(C104:D104)),($B$23*SUM(B104:D104)+$E$23*E104)/SUM(B104:E104),$D$23),IF(ABS(B104)>ABS(SUM(C104:D104)),($B$23*B104+$C$23*C104+$E$23*E104)/SUM(B104,C104,E104),$D$23)))) -> 84 | K104: TRUE | N104: твоя формула
K105: =COUNTIF(K25:K104,FALSE) -> 1

Sheet Лист2

Sheet Лист3
